{"text_format":"1","workbook":"xlsx","n_sheets":21,"sheets":["Cover Page","Contents","Facility Info","Operational Summary","Operational Data","Perf. Form 1","Energy Form 1","Permit Compliance","Improvements","Public Liaison","Residue Quality ","Water","Air (periodic)","Air (CEMS)","HCl","SO2","NOx","TOC","Particulates","CO 0.5hourly","NH3"],"not_rendered":{"charts":7,"images":2,"macros":1,"external_links":0,"defined_names":21,"comments":0,"pivot_tables":0},"unopened":[],"bounds":{"document_bytes":16777216,"sheet_cells":100000,"rows_first":2000,"rows_last":500,"rows_between":2000,"halvings":0,"cell_chars":16384,"cell_head_chars":4096},"cells_cut":0,"cells_raw":0,"read":"whole","date_system":"1900"}

{"sheet":"Cover Page","index":0,"n_rows":53,"n_cols":14,"rows_kept":53,"cut":false,"hidden":false,"merged":[[13,13,18,15],[34,1,34,8],[0,3,5,6],[7,1,23,8],[28,1,28,8],[30,1,30,8],[32,1,32,8],[48,2,48,3],[48,6,48,8],[52,2,52,3],[36,1,36,8],[40,2,40,8],[42,2,42,4],[44,2,44,4],[46,2,46,3],[46,6,46,8]]}
[null,null,null,"Add company logo"]
[null,null,null,null,null,null,null,null,null,null,null,null,null,"Version 20.6 "]
[]
[]
[]
[]
[]
[null,"Add photo"]
[]
[]
[]
[]
[null,null,null,null,null,null,null,null,null,null,null,null,null,"Notes:"]
[null,null,null,null,null,null,null,null,null,null,null,null,null,"This template may require adjustments by individual operators to meet specific reporting requirements as defined in the site Permit(s)"]
[]
[]
[]
[]
[]
[]
[]
[]
[]
[]
[]
[]
[]
[]
[null,"Annual Performance Report 2020"]
[]
[null,"Permit EPR/CP3535CK"]
[]
[null,"Javelin Park Energy Recovery Facility "]
[]
[]
[]
[null,"Urbaser Environmental Ltd"]
[]
[null,"Year:",2020]
[]
[null,"Address:","Javelin Park, Haresfield, Gloucestershire, GL2 7NQ"]
[]
[null,"Tel: ","01452 379886"]
[]
[null,"Email: ","info@ubbgloucestershire.co.uk"]
[]
[null,"Prepared by:","Jacob Towl",null,null,"Position:","Environmental Technician"]
[]
[null,"Approved by:","Dan Pearson",null,null,"Position:","General Manager "]
[]
[null,"Version:",1]
[]
[null,"Issue Date:","2021-01-29"]

{"sheet":"Contents","index":1,"n_rows":44,"n_cols":11,"rows_kept":44,"cut":false,"hidden":false,"merged":[[4,10,7,14],[8,1,8,6],[3,1,3,6],[4,1,4,6],[5,1,5,6],[6,1,6,6],[7,1,7,6],[20,1,20,6],[9,1,9,6],[10,1,10,6],[11,1,11,6],[12,1,12,6],[13,1,13,6],[14,1,14,6],[15,1,15,6],[16,1,16,6],[17,1,17,6],[18,1,18,6],[19,1,19,6],[35,1,35,6],[21,1,21,6],[22,1,22,6],[23,1,23,6],[26,1,26,6],[27,1,27,6],[28,1,28,6],[29,1,29,6],[30,1,30,6],[31,1,31,6],[34,1,34,6],[43,0,46,9],[36,1,36,6],[37,1,37,6],[38,1,38,6],[39,1,39,6],[40,1,40,6],[41,1,41,6]]}
[{"$f":"+'Cover Page'!$B$29","v":"Annual Performance Report 2020"},null,null,null,{"$f":"+'Cover Page'!$B$33","v":"Javelin Park Energy Recovery Facility "}]
[]
["Contents",null,null,null,null,null,null,null,null,null,"Notes:"]
["Section","Subject",null,null,null,null,null,"Page ",null,null,"Section references and Page nos. to be inserted"]
[null,"Facility Information",null,null,null,null,null,3,null,null,"Sections and Subjects may require adjustment by individual operators to meet specific reporting requirements as defined in the sites Permit(s)"]
[null,"Operational Summary",null,null,null,null,null,4]
[null,"Operational Data",null,null,null,null,null,5]
[null,"Performance Form 1",null,null,null,null,null,6]
[null,"Energy Form 1",null,null,null,null,null,7]
[null,"Permit Compliance",null,null,null,null,null,8]
[null,"Improvements",null,null,null,null,null,11]
[null,"Public Liaison",null,null,null,null,null,12]
[null,"Residue Quality - Optional",null,null,null,null,null,14]
[null,"Emissions to Water",null,null,null,null,null,15]
[null,"Emissions to Air (periodically monitored)",null,null,null,null,null,16]
[null,"Emissions to Air (continuously monitored)",null,null,null,null,null,17]
[null,"Hydrogen Chloride emissions",null,null,null,null,null,18]
[null,"Sulphur Dioxdie emsissions",null,null,null,null,null,19]
[null,"Oxides of Notrigen emissions",null,null,null,null,null,20]
[null,"Total Organic Carbon emissions",null,null,null,null,null,21]
[null,"Particulate Matter emissions",null,null,null,null,null,22]
[null,"Carbon Monoxide emissions",null,null,null,null,null,23]
[null,"Ammonia emissions",null,null,null,null,null,24]
[]
[]
["Version Control"]
["Section","Information",null,null,null,null,null,"Date"]
["V1","Prepared by Jacob Towl, approved by Dan Pearson",null,null,null,null,null,"2021-01-29"]
[]
[]
[]
[]
[]
["Distribution"]
["Copy","Name, Role",null,null,null,null,null,"No."]
["V1","Anna Turner, EPR Installation Officer"]
[]
[]
[]
[]
[]
[]
[]
["This report is required under the Industrial Emissions Directive’s Article 55(2) requirements on reporting and public information on waste incineration plants and co-incineration plants, which require the operator to produce an annual report on the functioning and monitoring of the plant and make it available to the public. "]

{"sheet":"Facility Info","index":2,"n_rows":22,"n_cols":11,"rows_kept":22,"cut":false,"hidden":false,"merged":[[4,0,17,8],[21,0,53,8],[4,10,13,13],[21,10,30,13]]}
[{"$f":"+'Cover Page'!$B$29","v":"Annual Performance Report 2020"},null,null,null,{"$f":"+'Cover Page'!$B$33","v":"Javelin Park Energy Recovery Facility "}]
[]
["Plant Description and Design",null,null,null,null,null,null,null,null,null,"Notes:"]
[]
["The installation is designed to recover energy from residual municipal waste, and from commercial\nand industrial waste of a similar nature to residual municipal waste, by incineration. Energy will be\nrecovered from the installation in the form of electricity, which will be exported to the National Grid.\n\nThe installation is located on a 4.8 hectare site at grid reference 380040,210430, a short distance\nsouth of Junction 12 of the M5 motorway in Gloucestershire. The village of Haresfield is located\napproximately 1.0 km to the east of the site and the Quedgeley Business Park is located\napproximately 1.5 km to the north of the site on either side of the motorway.\n\nThe installation will process up to 190,000 tonnes of waste per year (23.75 tonnes per hour) in a\nsingle incineration line. The incinerator is of a mass burn moving grate design. Waste will be\ndelivered to the facility by road in covered vehicles or containers and tipped within the main\nbuilding in the waste reception hall directly into the waste bunker. The waste is stored and mixed\nin the waste bunker prior to being burnt in the moving grate incinerator plant.",null,null,null,null,null,null,null,null,null,"Include summary of plant design, design capacity, no. of combustion lines, electrical and heat capacity and any other general information that descibes the facility, its location and purpose "]
[]
[]
[]
[]
[]
[]
[]
[]
[]
[]
[]
[]
[]
[]
["Summary of Operational Processes and Procedures"]
[]
["Heat from the combustion process is used to generate high pressure steam in a multi stage boiler\nplant which is integral to the combustion process. The high pressure steam is fed to a steam\nturbine to generate electricity. The ERF has a total capacity of approximately 65.3 MW (thermal\ninput) and is capable of generating up to 17.4 MWe of electrical power, of which up to 14.5 MW will\nbe exported to the National Grid. Provision has been made in the design for the plant to be capable\nof supplying heat in the form of steam or hot water, once a viable heat user becomes available to\ntake the heat as an output.\n\nThe furnace design ensures that a temperature of at least 850°C for a period of at least two\nseconds is achieved in the combustion chamber. To ensure that the temperature does not fall\nbelow 850°C, auxiliary burners firing low sulphur fuel oil are automatically triggered by online\nprocess monitoring equipment. The auxiliary burners are also used to achieve and maintain the\nminimum furnace temperature during start up and shutdown periods.\n\nCombustion gases are cleaned before they are released to atmosphere. There are four\ncomponents to the flue gas cleaning and abatement technique:\n\n• Selective Non-Catalytic Reduction (SNCR), involving the injection of ammonia into the\ncombustion chamber, provides for the abatement of nitrogen oxides;\n\n• hydrated lime reagent, injected to neutralise acid gas compounds;\n\n• activated carbon, injected to absorb mercury, dioxins and furans; and\n\n• bag filtration to remove fine particulates. The residues which are collected on the bag filters\nare directed to a residues silo. Part of the residues are recycled to the reagent injection\npoints to ensure maximum usage of the lime content.\n\nCleaned flue gases exiting the abatement system of the incinerator line are discharged through a\n70 m tall stack. Exhaust flue gases are continuously monitored for particulate matter, oxides of\nnitrogen, sulphur dioxide, carbon monoxide, total organic carbon, hydrogen chloride and ammonia\nMonitoring for heavy metals, dioxins, nitrous oxide and hydrogen fluoride is carried out periodically.\n\nUnder normal circumstances there are no liquid effluent emissions from the installation. Although\nsome rainwater is harvested for use in the process, the site has a net consumption of water. Waste\nwater arisings from boiler blowdown and water treatment backwash are recycled to the Incinerator\nBottom Ash (IBA) quench system. Sludge from the IBA waste water pit will be periodically tankered\noff-site for appropriate treatment.\n\n",null,null,null,null,null,null,null,null,null,"Include summary of key processes and procedures such as (but not limited to); waste reception, control rooms, grate, bed and bolier, energy & heat  generation, cooling systems, residue management, emission controls, health and safety systems, maintenance"]

{"sheet":"Operational Summary","index":3,"n_rows":31,"n_cols":11,"rows_kept":31,"cut":false,"hidden":false,"merged":[[4,0,26,8],[30,0,51,8],[4,10,13,13],[30,10,39,13]]}
[{"$f":"+'Cover Page'!$B$29","v":"Annual Performance Report 2020"},null,null,null,{"$f":"+'Cover Page'!$B$33","v":"Javelin Park Energy Recovery Facility "}]
[]
["Summary of Plant Operations and Maintenance during the reporting year",null,null,null,null,null,null,null,null,null,"Notes:"]
[]
["The plant continued to operate through it's first year since service commencement in October 2019, and underwent it's first planned major outage in September/October 2020 in which a number of maintenance activites were carried out.",null,null,null,null,null,null,null,null,null,"Include summary of key operational and/or mainteanance activity undertaken in the year, such as any major component upgrades and/or replacements "]
[]
[]
[]
[]
[]
[]
[]
[]
[]
[]
[]
[]
[]
[]
[]
[]
[]
[]
[]
[]
[]
[]
[]
["Summary of Residue Handling for the reporting year"]
[]
["IBA and APCr tests were carried out on a monthly basis in line with the ESA Protocol, with no samples exceeding hazardous property thresholds. All samples were also compliant with the permit conditions.\n\nIBA has been sent to Ilkeston for processing and recycling and APCr has been sent to hazardous landfill in Peterborough.",null,null,null,null,null,null,null,null,null,"Include in here a summary of residue handling regimes and destinations "]

{"sheet":"Operational Data","index":4,"n_rows":65,"n_cols":11,"rows_kept":65,"cut":false,"hidden":false,"merged":[[3,1,3,2],[7,1,19,1],[23,1,26,1],[28,1,29,1],[52,0,56,0],[5,10,6,10],[7,10,18,10],[33,1,38,1],[30,2,30,5],[30,6,30,7]]}
[{"$f":"+'Cover Page'!$B$29","v":"Annual Performance Report 2020"},null,null,null,{"$f":"+'Cover Page'!$B$33","v":"Javelin Park Energy Recovery Facility "}]
[]
["Operational Data",null,null,null,null,null,null,null,null,null,"Notes:"]
["Plant Size",190000,null,"tonnes pa",65,"MWth",17,"MWe",null,null,"* - RDF to include SRF "]
["No. of combustion lines",1,null,"No. of Turbines:",null,1,null,null,null,null,"** - CHP plants only"]
[null,null,null,null,null,null,null,null,null,null,"2020 updates include;  heat in MWh, water in Litres, NCV in MJ/kg"]
["Waste types received","Unit","Q1","Q2","Q3","Q4","Year Total","%"]
["Household / Local Authority","tonnes",32375.14,31303.52,33393.040000000001,33386.36,{"$f":"SUM(C8:F8)","v":130458.06000000001},{"$f":"IF(G8>0,G8/$G$18,\"-\")","v":0.71230312000613272},null,null,"Availabiity Definition: 'the availability of a line is to be calculated by the number of hours the line reported Continuously Monitored emission levels to the Regulator through the calendar year divided by the total number of hours in that year. \nThe overall plant availability is calculated as the Mean of all lines in the plant. For clarity this includes periods of Other Than Normal Operating Conditions (OTNOC) and abnormal operation.'  \n\nRationale: The primary function of an Energy from Waste facility is the disposal of waste. It follows therefore that the availability of a plant is determined by the period of time a facility spends undertaking this activity."]
["Commercial & Industrial ",null,15985.56,10171.06,12310.86,14224.1,{"$f":"SUM(C9:F9)","v":52691.579999999994},0.28769687999386728]
["Hazardous ",null,null,null,null,null,0,"-"]
["Clinical",null,null,null,null,null,0,"-"]
["Waste wood (biomass) ",null,null,null,null,null,0,"-"]
["Refuse Derived Fuel * - H'hold/LA",null,null,null,null,null,{"$f":"SUM(C13:F13)","v":0},"-"]
["Refuse Derived Fuel *  - C&I",null,null,null,null,null,0,"-"]
["Other [Please specify]",null,null,null,null,null,0,"-"]
["Other [Please specify]"]
["Other [Please specify]"]
["Total waste received",null,{"$f":"SUM(C8:C17)","v":48360.7},{"$f":"SUM(D8:D17)","v":41474.58},{"$f":"SUM(E8:E17)","v":45703.9},{"$f":"SUM(F8:F17)","v":47610.46},{"$f":"SUM(G8:G17)","v":183149.64},1]
["Rejected Waste ",null,null,null,1,5,{"$f":"SUM(C19:F19)","v":6},{"$f":"IF(G19>0,G19/$G$18,\"-\")","v":3.2760097153344117E-5}]
["Unprocessed waste transferred out",null,null,null,null,null,{"$f":"SUM(C20:F20)","v":0},{"$f":"IF(G20>0,G20/$G$18,\"-\")","v":"-"}]
["Total waste combusted",null,{"$f":"C18-SUM(C19:C20)","v":48360.7},{"$f":"D18-SUM(D19:D20)","v":41474.58},45702.9,47605.46,{"$f":"SUM(C21:F21)","v":183143.63999999998},{"$f":"IF(G21>0,G21/$G$18,\"-\")","v":0.99996723990284653}]
[]
["Energy Useage / Export","Unit","Q1","Q2","Q3","Q4","Year Total","KWh/te"]
["Power Generated","MWh",36827.599999999999,30538.6,35904.300000000003,35628.400000000001,{"$f":"SUM(C24:F24)","v":138898.9},{"$f":"IF(G24>0,G24*1000/$G$21,\"-\")","v":758.41508883409767}]
["Power Exported",null,32874.800000000003,27255.599999999999,32139,29738.2,{"$f":"SUM(C25:F25)","v":122007.59999999999},{"$f":"IF(G25>0,G25*1000/$G$21,\"-\")","v":666.1852958694061}]
["Power Used on site",null,3879.98,3436.15,3581.8,3471.28,{"$f":"SUM(C26:F26)","v":14369.210000000001},{"$f":"IF(G26>0,G26*1000/$G$21,\"-\")","v":78.458689583760616}]
["Power Imported",null,132.30000000000001,399.5,139.69999999999999,449.8,1121.3,{"$f":"IF(G27>0,G27*1000/$G$21,\"-\")","v":6.1225167305837109}]
["Parasitic Load","%",{"$f":"IF(C24>0,1-C25/(C24+C27),\"-\")","v":0.11052789644993621},{"$f":"IF(D24>0,1-D25/(D24+D27),\"-\")","v":0.11902799460858937},{"$f":"IF(E24>0,1-E25/(E24+E27),\"-\")","v":0.10833980690267453},{"$f":"IF(F24>0,1-F25/(F24+F27),\"-\")","v":0.17572938782976988},{"$f":"IF(G24>0,1-G25/(G24+G27),\"-\")","v":0.12864286724344054}]
["Thermal Energy Produced **","MWh",null,null,null,null,{"$f":"SUM(C29:F29)","v":0},{"$f":"IF(G29>0,G29*1000/$G$21,\"-\")","v":"-"}]
["Thermal Energy Exported **",null,null,null,null,null,0,{"$f":"IF(G30>0,G30*1000/$G$21,\"-\")","v":"-"}]
["R1 value",null,"<=0.65",null,null,null,"Design / Operational / n/a"]
[]
["Waste Disposal & Recovery","Unit","Q1","Q2","Q3","Q4","Year Total","% inputs"]
["APC Residues - produced","tonnes",1323.09,1018.99,1407.75,1243.5999999999999,{"$f":"SUM(C34:F34)","v":4993.43},{"$f":"IF(G34>0,G34/$G$21,\"-\")","v":2.7265101862123088E-2}]
["IBA - produced",null,9792.57,7910.74,9303.09,9275.7999999999993,36282.199999999997,{"$f":"IF(G35>0,G35/$G$21,\"-\")","v":0.19810788952321795}]
["Metals recycling",null,3032,272,3252,124,{"$f":"SUM(C36:F36)","v":6680},3.6474103059216258E-2]
["Other",null,0,0,0,0,{"$f":"SUM(C37:F37)","v":0},"-"]
["Other",null,0,0,0,0,0,"-"]
["Other",null,0,0,0,0,0,"-"]
[]
["Raw Material Usage","Unit","Q1","Q2","Q3","Q4","Year Total","kg or Ltr /te"]
["Mains Water","ltrs",16778250,14076420,13622030,9250000,{"$f":"SUM(C42:F42)","v":53726700},{"$f":"IF(G42>0,G42/$G$21,\"-\")","v":293.35826239993924}]
["Other Water","ltrs",null,null,null,null,0,{"$f":"IF(G43>0,G43/$G$21,\"-\")","v":"-"}]
["Ammonia","kgs",137520,114350,134730,81510,468110,2.5559719136301977]
["Urea","kgs",null,null,null,null,{"$f":"SUM(C45:F45)","v":0},"-"]
["Activated Carbon","kgs",8640,10070,11470,11190,41370,0.22588826999397851]
["Lime / hydrated lime","kgs",645360,523850,704530,621190,2494930,13.622804482863835]
["Fuel oil","ltrs",72235.289999999994,202941.18,42235.29,184150.11,501561.86999999994,2.7386256492444945]
["Gas","cf",0,0,0,0,0]
["Other",null,0,0,0,0,0]
[]
["Summary ","Line/Unit","Q1","Q2","Q3","Q4","Year Total",null,null,"Hrs in year "]
["Availability of waste combustion by line, hrs",{"$f":"+B5","v":1},2101.6,1780.2,2028.36,1899.47,{"$f":"SUM(C53:F53)","v":7809.63},0.88900000000000001,null,8760]
[null,2,null,null,null,null,0,"x %"]
[null,3,null,null,null,null,0,"x %"]
[null,4,null,null,null,null,0,"x %"]
[null,5,null,null,null,null,{"$f":"SUM(C57:F57)","v":0},"x %"]
["Overall Availability, mean avg. of all lines, hrs",null,2101.6,1780.2,2028.36,1899.47,{"$f":"AVERAGE(G53:G57)","v":1561.9259999999999},0.88900000000000001]
["Hours of turbine operations, hrs",1,2089.1,1750.75,2025.6,1798.1,7663.5499999999993,0.872]
["Hours of turbine operations, hrs",2,null,null,null,null,0,"x %"]
["Hours of heat / steam export",null,null,null,null,null,0,{"$f":"IF(B61>0,G60/J53,\"n/a\")","v":"n/a"}]
["Net Calorific Value of waste","MJ/kg",null,null,null,null,null,"-"]
["Abnormal Events","qty.",null,null,null,null,0,{"$f":"IF(G63>0,\"yes\",\"no\")","v":"no"}]
["Abnormal operation","hours",null,null,null,null,0,{"$f":"+(G64)/J53","v":0}]
["Permit Breaches","qty.",null,null,2,1,3,{"$f":"IF(G65>0,\"yes\",\"no\")","v":"yes"}]

{"sheet":"Perf. Form 1","index":5,"n_rows":54,"n_cols":10,"rows_kept":54,"cut":false,"hidden":false,"merged":[[9,0,9,9],[10,0,10,1],[10,2,10,3],[10,4,10,5],[10,6,10,7],[10,8,10,9],[2,0,2,4],[2,6,2,8],[3,1,3,4],[5,3,5,4],[5,6,5,7],[8,0,8,1],[8,2,8,3],[8,4,8,5],[8,6,8,7],[8,8,8,9],[11,0,11,1],[11,2,11,3],[11,4,11,5],[11,6,11,7],[11,8,11,9],[12,0,12,1],[12,2,12,3],[12,4,12,5],[12,6,12,7],[12,8,12,9],[15,0,15,1],[15,2,15,3],[15,4,15,5],[15,6,15,7],[15,8,15,9],[16,0,16,9],[13,0,13,1],[13,2,13,3],[13,4,13,5],[13,6,13,7],[13,8,13,9],[14,0,14,3],[14,4,14,5],[14,6,14,7],[14,8,14,9],[17,0,17,1],[17,2,17,3],[17,4,17,5],[17,6,17,7],[17,8,17,9],[18,0,18,1],[18,2,18,3],[18,4,18,5],[18,6,18,7],[18,8,18,9],[19,0,19,1],[19,2,19,3],[19,4,19,5],[19,6,19,7],[19,8,19,9],[20,0,20,1],[20,2,20,3],[20,4,20,5],[20,6,20,7],[20,8,20,9],[21,0,21,1],[21,2,21,3],[21,4,21,5],[21,6,21,7],[21,8,21,9],[22,0,22,3],[22,4,22,5],[22,6,22,7],[22,8,22,9],[31,0,31,3],[31,7,31,8],[32,0,32,3],[32,4,32,5],[32,7,32,8],[33,0,33,3],[33,4,33,5],[33,7,33,8],[23,0,23,3],[23,4,23,5],[23,6,23,7],[23,8,23,9],[25,0,25,9],[26,0,28,9],[36,0,36,3],[36,4,36,5],[36,7,36,8],[37,0,37,3],[37,4,37,5],[37,7,37,8],[34,0,34,3],[34,4,34,5],[34,7,34,8],[35,0,35,3],[35,4,35,5],[35,7,35,8],[47,0,47,1],[49,0,49,9],[50,0,51,9],[38,0,38,9],[39,0,40,9],[43,0,43,1],[43,2,43,9],[45,0,45,1],[46,0,46,1]]}
[{"$f":"+'Cover Page'!C39","v":2020}," Annual Reporting Performance Form 1"]
[]
[{"$f":"+'Cover Page'!B31","v":"Permit EPR/CP3535CK"},null,null,null,null,"Operator: ",{"$f":"+'Cover Page'!B37:I37","v":0}]
["Facility:",{"$f":"+'Cover Page'!B33:I33","v":"Javelin Park Energy Recovery Facility "},null,null,null,"Form:","Performance 1"]
[]
["Reporting  Period from: ",null,null,"2020-01-01",null,"to:","2020-12-31"]
[]
[{"$f":"+A1","v":2020},"Annual Reporting of Waste Disposal and Recovery"]
["Waste Description",null,"Disposal Route(s)",null,"Disposal Tonnes",null,"Recovery Tonnes",null,"% / tonne of waste incinerated"]
["1) Hazardous Wastes"]
["APC Residues",null,"Northamptonshire",null,5128.16,null,null,null,{"$f":"IF((E11+G11)>0,(E11+G11)/'Operational Data'!$G$21, \"-\")","v":2.8000753943735093E-2}]
["IBA",null,null,null,null,null,null,null,{"$f":"IF((E12+G12)>0,(E12+G12)/'Operational Data'!$G$21, \"-\")","v":"-"}]
[null,null,null,null,null,null,null,null,{"$f":"IF((E13+G13)>0,(E13+G13)/'Operational Data'!$G$21, \"-\")","v":"-"}]
[null,null,null,null,null,null,null,null,{"$f":"IF((E14+G14)>0,(E14+G14)/'Operational Data'!$G$21, \"-\")","v":"-"}]
["Total Hazardous Waste",null,null,null,{"$f":"SUM(E11:F14)","v":5128.16},null,{"$f":"SUM(G11:H14)","v":0},null,{"$f":"IF((E15+G15)>0,(E15+G15)/'Operational Data'!$G$21, \"-\")","v":2.8000753943735093E-2}]
[]
["2) Non-Hazardous Wastes"]
["IBA",null,"Derbyshire",null,null,null,41227.42,null,{"$f":"IF((E18+G18)>0,(E18+G18)/'Operational Data'!$G$21, \"-\")","v":0.22510975538107686}]
["Ferrous Metal",null,"Derbyshire",null,null,null,1405.52,null,{"$f":"IF((E19+G19)>0,(E19+G19)/'Operational Data'!$G$21, \"-\")","v":7.6744133730224E-3}]
["Process Water",null,"Gloucestershire",null,16723.240000000002,null,null,null,{"$f":"IF((E20+G20)>0,(E20+G20)/'Operational Data'!$G$21, \"-\")","v":9.131215258143828E-2}]
["Non-Ferrous",null,"Derbyshire",null,null,null,57.32,null,{"$f":"IF((E21+G21)>0,(E21+G21)/'Operational Data'!$G$21, \"-\")","v":3.1297838134046045E-4}]
[null,null,null,null,null,null,null,null,{"$f":"IF((E22+G22)>0,(E22+G22)/'Operational Data'!$G$21, \"-\")","v":"-"}]
["Total Non-Hazardous Waste",null,null,null,{"$f":"SUM(E18:F22)","v":16723.240000000002},null,{"$f":"SUM(G18:H22)","v":42690.259999999995},null,{"$f":"IF((E23+G23)>0,(E23+G23)/'Operational Data'!$G$21, \"-\")","v":0.32440929971687799}]
["TOTAL WASTE",null,null,null,{"$f":"+E23+E15","v":21851.4},null,{"$f":"+G23+G15","v":42690.259999999995},null,{"$f":"IF((E24+G24)>0,(E24+G24)/'Operational Data'!$G$21, \"-\")","v":0.35241005366061307}]
[]
["Operator’s comments :"]
[]
[]
[]
[]
[{"$f":"+A1","v":2020},"Annual Reporting of Water and Other Raw Material Usage"]
["Raw Material",null,null,null,"Usage",null,"Unit","Specific Useage",null,"Unit"]
["Mains Water",null,null,null,{"$f":"+'Operational Data'!G42","v":53726700},null,"ltrs",{"$f":"IF(E33>0,E33/'Operational Data'!$G$21,\"-\")","v":293.35826239993924},null,"ltrs/te"]
["Total Water",null,null,null,{"$f":"+'Operational Data'!G43+'Operational Data'!G42","v":53726700},null,"ltrs",{"$f":"IF(E34>0,E34/'Operational Data'!$G$21,\"-\")","v":293.35826239993924},null,"ltrs/te"]
["Urea / Ammonia",null,null,null,{"$f":"+'Operational Data'!G44","v":468110},null,"kg",{"$f":"IF(E35>0,E35/'Operational Data'!$G$21,\"-\")","v":2.5559719136301977},null,"kg/te"]
["Activated Carbon",null,null,null,{"$f":"+'Operational Data'!G46","v":41370},null,"kg",{"$f":"IF(E36>0,E36/'Operational Data'!$G$21,\"-\")","v":0.22588826999397851},null,"kg/te"]
["Lime / hydrated lime / Sodium Bicarb.",null,null,null,{"$f":"+'Operational Data'!G47","v":2494930},null,"kg",{"$f":"IF(E37>0,E37/'Operational Data'!$G$21,\"-\")","v":13.622804482863835},null,"kg/te"]
[]
["Operator’s comments :"]
[]
[]
[]
[{"$f":"+A31","v":2020},"Annual Reporting of other performance indicators "]
["Parameter",null,"Results by Line"]
[null,null,"A1","A2","A3","A4","A5",null,"Turbine 1","Turbine 2"]
["Operating hours for the year, hours",null,7809.63,null,null,null,null,null,7664]
["Number of periods of abnormal operation, qty."]
["Cumulative hours of abnormal operation for this year, hours"]
[]
["Operator’s comments :"]
[]
[]
[]
["Signed: ",null,null,null,null,null,"Date:"]

{"sheet":"Energy Form 1","index":6,"n_rows":29,"n_cols":7,"rows_kept":29,"cut":false,"hidden":false,"merged":[[2,6,2,8],[4,1,4,4],[6,3,6,4],[6,6,6,7],[8,0,8,2],[8,3,8,4],[8,6,8,8],[9,0,9,2],[9,3,9,4],[9,6,9,8],[10,0,10,2],[10,3,10,4],[10,6,10,8],[11,0,11,2],[11,3,11,4],[11,6,11,8],[12,0,12,2],[12,3,12,4],[12,6,12,8],[13,0,13,2],[13,3,13,4],[13,6,13,8],[14,0,14,2],[14,3,14,4],[14,6,14,8],[15,0,15,2],[15,3,15,4],[15,6,15,8],[17,0,17,8],[18,0,24,8]]}
[{"$f":"+'Cover Page'!C39","v":2020}," Annual Reporting of Energy Usage/Export"]
[]
[{"$f":"+'Cover Page'!B31","v":"Permit EPR/CP3535CK"},null,null,null,null,"Operator: ","Urbaser Environmental Ltd"]
[]
["Facility:",{"$f":"+'Cover Page'!B33:I33","v":"Javelin Park Energy Recovery Facility "},null,null,null,"Form:","Energy 1"]
[]
["Reporting  Period from: ",null,null,{"$f":"+'Perf. Form 1'!D6:E6","v":"2020-01-01"},null,"to:",{"$f":"+'Perf. Form 1'!G6:H6","v":"2020-12-31"}]
[]
["Energy Source",null,null,"Energy Usage",null,"Unit","Specific Useage (KWh/tonne incinerated"]
["Electricity Produced",null,null,{"$f":"+'Operational Data'!G24","v":138898.9},null,"MWh",{"$f":"+'Operational Data'!H24","v":758.41508883409767}]
["Electricity Imported   ",null,null,{"$f":"+'Operational Data'!G27","v":1121.3},null,"MWh",{"$f":"+'Operational Data'!H27","v":6.1225167305837109}]
["Electricity Exported",null,null,{"$f":"+'Operational Data'!G25","v":122007.59999999999},null,"MWh",{"$f":"+'Operational Data'!H25","v":666.1852958694061}]
["Gas Oil",null,null,426.3,null,"tonnes"]
["Steam/hot water exported",null,null,{"$f":"+'Operational Data'!G30","v":0},null,"GWh",{"$f":"+'Operational Data'!H30","v":"-"}]
[]
[]
[]
["Operator’s comments :"]
[]
[]
[]
[]
[]
[]
[]
[]
[]
[]
["Signed: ",null,null,null,null,null,"Date:"]

{"sheet":"Permit Compliance","index":7,"n_rows":54,"n_cols":12,"rows_kept":54,"cut":false,"hidden":false,"merged":[[8,11,17,14],[9,0,9,1],[9,2,9,4],[9,5,9,8],[10,0,10,1],[10,2,10,4],[10,5,10,8],[11,0,11,1],[11,2,11,4],[11,5,11,8],[12,0,12,1],[12,2,12,4],[12,5,12,8],[13,0,13,1],[13,2,13,4],[13,5,13,8],[14,0,14,1],[14,2,14,4],[14,5,14,8],[15,0,15,1],[7,0,7,1],[7,2,7,8],[8,0,8,1],[8,2,8,4],[8,5,8,8],[19,4,19,6],[19,7,19,9],[20,1,20,3],[20,4,20,6],[20,7,20,9],[16,2,16,4],[16,5,16,8],[15,2,15,4],[15,5,15,8],[16,0,16,1],[30,1,30,3],[30,4,30,6],[27,1,27,3],[27,4,27,6],[27,7,27,9],[28,1,28,3],[28,4,28,6],[28,7,28,9],[30,7,30,8],[24,0,24,10],[18,0,18,10],[29,1,29,3],[29,4,29,6],[29,7,29,9],[25,1,25,3],[25,4,25,6],[25,7,25,9],[26,1,26,3],[26,4,26,6],[26,7,26,9],[21,1,21,3],[21,4,21,6],[21,7,21,9],[22,1,22,3],[22,4,22,6],[22,7,22,9],[19,1,19,3],[33,1,33,3],[33,4,33,6],[33,7,33,8],[34,1,34,3],[34,4,34,6],[34,7,34,8],[31,1,31,3],[31,4,31,6],[31,7,31,8],[32,1,32,3],[32,4,32,6],[32,7,32,8],[37,1,37,3],[37,4,37,6],[37,7,37,8],[38,1,38,3],[38,4,38,6],[38,7,38,8],[35,1,35,3],[35,4,35,6],[35,7,35,8],[36,1,36,3],[36,4,36,6],[36,7,36,8],[41,1,41,3],[41,4,41,6],[41,7,41,8],[42,1,42,3],[42,4,42,6],[42,7,42,8],[39,1,39,3],[39,4,39,6],[39,7,39,8],[40,1,40,3],[40,4,40,6],[40,7,40,8],[45,1,45,3],[45,4,45,6],[45,7,45,8],[46,1,46,3],[46,4,46,6],[46,7,46,8],[43,1,43,3],[43,4,43,6],[43,7,43,8],[44,1,44,3],[44,4,44,6],[44,7,44,8],[49,1,49,3],[49,4,49,6],[49,7,49,8],[50,1,50,3],[50,4,50,6],[50,7,50,8],[47,1,47,3],[47,4,47,6],[47,7,47,8],[48,1,48,3],[48,4,48,6],[48,7,48,8],[53,1,53,3],[53,4,53,6],[53,7,53,9],[51,1,51,3],[51,4,51,6],[51,7,51,8],[52,1,52,3],[52,4,52,6],[52,7,52,8]]}
[{"$f":"+'Cover Page'!$B$29","v":"Annual Performance Report 2020"},null,null,null,{"$f":"+'Cover Page'!$B$33","v":"Javelin Park Energy Recovery Facility "}]
[]
["Summary of Permit Compliance"]
[]
["Compliance with permit limits for continuously monitored pollutants"]
[]
["The plant met its emission limits as shown in the table below:"]
["Substance",null,"Percentage time compliant during operation",null,null,null,null,null,null,null,null,"Notes:"]
[null,null,"Half-hourly limit",null,null,"Daily limit",null,null,null,null,null,"Report to 2 decimal places, i.e. xx.xx%\n\nPlease provide a brief summary of each notification or non-compliance in the table (rather than just referring to notifications that were sent to the Regulator).  \n\n"]
["Particulates",null,1,null,null,1]
["Oxides of nitrogen",null,1,null,null,1]
["Sulphur dioxide",null,1,null,null,1]
["Carbon monoxide",null,0.99819999999999998,null,null,1]
["Total organic carbon",null,1,null,null,1]
["Hydrogen chloride",null,1,null,null,1]
[]
[]
[]
["Summary of any notifications or non-compliances under the permit"]
["Date","Summary of notification or non-compliance [including Line/Reference]",null,null,"Reason ",null,null,"Measures taken to prevent reoccurrence"]
["2020-08-07","CO half hourly breach - Schedule 5 notification sent",null,null,"Explosion on the grate",null,null,"Increased waste inspections"]
["2020-09-26","CO half hourly breach - Schedule 5 notification sent",null,null,"Explosion on the grate",null,null,"Increased waste inspections"]
["2020-12-15","CO half hourly breach - Schedule 5 notification sent",null,null,"Explosion on the grate",null,null,"Increased waste inspections"]
[]
["Summary of any complaints received and actions taken to resolve them."]
["Date","Summary of complaint [including Line/Reference]",null,null,"Reason *",null,null,"Measures taken to prevent reoccurrence"]
["2020-01-07","Burning chemical smell",null,null,"Odour - unsubstantiated by operator",null,null,"Continue with daily noise and odour monitoring"]
["2020-01-22","Caller reported smoke and odour from Javelin Park",null,null,"Unsubstantiated by operator. Smoke attributed to stack plume which was noted as visible on daily noise and odour checks, which also did not note of any odour",null,null,"Continue with daily noise and odour monitoring"]
["2020-02-23","Emailer reported terrible smell on 10//02/20 & 03/02/20, along with waste delivery vehicle drivers using horns unnessecarily. Also awoken on 04/02/20 at 4am by a truck delivering waste to site ",null,null,"Odour and Noise. Unsubstantiated. ",null,null,"Continue with daily noise and odour monitoring. Asked complainant to contact as soon as these occur to better substantiate claims in future."]
["2020-04-08","Burning plastic smell and burning garden waste smell, at property 0.5miles from site",null,null,"Complaint received via EA. Unsubstantiated",null,null,"Continue with daily noise and odour monitoring"]
["2020-04-08","Obnoxious smell in Hardwicke",null,null,"Odour. Was unsubstantiated as found no odour",null,null,"Continue with daily noise and odour monitoring"]
["2020-04-17","Complained of alarm going off at site and very large humming",null,null,"Noise. Substantiated by operator, and was explained ",null,null,"Fire pump testing to continue to only be used when needed, and tested on a Frida for a half hour period as requred. Complainant told of likely time they will be able to hear it"]
["2020-05-21","White particles in atmosphere",null,null,"Substantiated by operator. particulates from a refuge vehicle. ",null,null,"Photos and a report was issued to the waste courier and the team instructed to closely monitor the waste courier in future deliverys. "]
["2020-05-22","Odour smelt in the morning",null,null,"Noise & Odour.Unsubstantiated by operator. ",null,null,"Continue with daily noise and odour monitoring. Asked complainant to contact as soon as these occur to better substantiate claims in future."]
["2020-05-22","Very loud noise vibrating continuously lasting half hour",null,null,"Substantiated by operator, diesel fire pumps' weekly test run,",null,null,"Apologsed for inconvenience, but reminded fire pumps are needed to be tested weekly for half an hour and are typically done at this time."]
["2020-05-23","Horrible smell on and off on the day of complaint, the resident has had to go back inside the house.",null,null,"Unsubstantiated by operator.Noise & Odour ",null,null,"Continue with daily noise and odour monitoring. Asked complainant to contact as soon as these occur to better substantiate claims in future."]
["2020-06-01","Venting noise from the incinerator keeping adjacent resident awake with windows closed, went on until the early hours of the morning and was excessive. ",null,null,"Substantiated by operator. From the steam vent valve ",null,null,"Apologised to complainant, however unavoidable when bringing the plant back online and it is not a regular event."]
["2020-06-06","Unpleasant smell wafting across to nearby resident since 9am",null,null,"Substantiated by operator. Odour, plant off and the wind direction ",null,null,"Continue with daily odour checks, ensure tipping hall reception and exit doors are closed when not in use."]
["2020-06-08","Waste delivery vehicle turning left into the facility - vehicles should not be using this route which passes the local resident under normal circumstances",null,null,"Substantiated by operator. Access road temporarily closed, had to use the contingency route ",null,null,"Unavoidable due to closure of primary route. "]
["2020-06-09","Bad odour at nearby property",null,null,"Odour. Unsubstantiated by operator. ",null,null,"Continue with daily noise and odour monitoring"]
["2020-06-11","Waste delivery vehicle driver complained about ash falling and hitting his cab while accessing the tipping hall, by the shutter door where the conveyor runs overhead",null,null,"Substantiated by operator, wet ash falling down onto vehicles from conveyors above tipping hall entrance door",null,null,"Scaffolding built over tipping hall entrance doorway while maintenance being undertaken to stop wet ash falling down"]
["2020-06-15","Odour throughout the morning",null,null,"Unsubstantiated by operator. Unable to detect odour",null,null,"Continue with daily noise and odour monitoring"]
["2020-06-21","Odour smell at nearby property",null,null,"Unsubstantiated by operator. Unable to detect odour",null,null,"The Shift leader has confirmed that the all tipping hall doors were closed leading up to and after the complaint and that there were very limited number of vehicles on site that day."]
["2020-07-14","Waste delivery vehicle rasied complaint about IBA falling from scaffold above tipping hall door onto the vehicles.",null,null,"Substantiated by operator. Wet ash build up on scaffolding and falling below.",null,null,"IBA cleaned up from scaffold in order to prevent spillage onto road and potentially vehicles outside tipping hall entrance door."]
["2020-07-31","Loud noise and vibration felt within household.",null,null,"Substantiated by operator. testing of the fire pumps",null,null,"Explained that we are duty bound to run the pumps for safety reasons, however we suggested that a more appropriate time or day could be used if they so wished."]
["2020-09-08","Odour issue at 2.30pm",null,null,"Unsubstantiated by operator. Odour, nearby muck spreading",null,null,"Continue with daily noise and odour monitoring"]
["2020-09-09","Noise during the night around 4am",null,null,"Substantiated by operator. fire pumps need to be run to maintain safety to the systems.",null,null,"Unavoidable as pumps were required to run"]
["2020-09-09","Vibration complaint by resident around 5 miles away, causing resident as well as others in the city great grief. Vibration causing insomnia to resident and many others in city. ",null,null,"Unsubstantiated by operator. Coincided with power outage when the fire pumps were in service in the early morning to maintain safety of the system. This being said it is very unlikely that there were any vibrations particularly being felt 5 miles away. The neighbours of the facility also did not complain about any vibrations only due to the noise caused, which wouldn't impact a property 5 miles away.",null,null,"Vibration analysis currently taking place at area of complainant to see if a relation can be found to the site."]
["2020-10-06","A caller to the EA reported a smell of burning plastic and are worried about their health. The caller could not see any smoke, only smell it. Caller has not noticed this before, and are  about 3 miles east of Gloucester EfW",null,null,"Unsubstantiated by operator. Was not processing or otherwise burning any waste.",null,null,"Continue with daily noise and odour monitoring"]
["10/10 - 11/10","Complain of noise over the weekend ",null,null,"Substantiated by operator. Fire pumps ran all weekend due to fire in the waste chute that prevented plant from fully coming back online folllowing the annual outage",null,null,"Unavoidable due to fire in waste chute"]
["2020-11-16","Issue with the fire pump sounding. It was also stated that the fire pump has been audible about a dozen times in the last 2-3 weeks which they feel is unacceptable.",null,null,"Substantiated by operator. Fault with the fire pump system which is being worked on to correct this, but whilst this is happening the fire pump will stay on",null,null,"Once fault corrected sound will only be heard when weekly testing takes place for half an hour"]
["2020-12-15","Regarding fire pump sounded during night of 15th December.",null,null,"Substantiated by operator. Fire pumps sounded due to blockage in waste chute, and fire pumps used as precaution.",null,null,"Unavoidable due to fire in the waste chute"]
["16/12/20 & 17/12/20","Nearby resident on the 16/12/20 @ 12pm explaining they saw a bin lorry go past the residence on the B4008. On the 17/12/20 @ 11am the same resident saw another bin lory drive past on the B4008 toward Gloucester EfW",null,null,"Substantiated by operator. Lorry entered from unauthorised route",null,null,"Vehicles permitted to use this route in this instance"]
["2020-12-18","Sound from the fire pumps at 4pm and thought they had been running all day.",null,null,"Partly substantiated by operator. The fire pump had only been on for around an hour for the obligatory weekly testing of the fire pumps. It is worth noting that this took place at around 4pm compared to the typical 11am testing on a Friday",null,null,"Explained that it was tested slighlty later in the day than usual"]

{"sheet":"Improvements","index":8,"n_rows":38,"n_cols":5,"rows_kept":38,"cut":false,"hidden":false,"merged":[[37,0,37,9],[38,0,47,9],[4,0,4,9],[5,0,13,9],[15,0,15,9],[16,0,24,9],[26,0,26,9],[27,0,35,9]]}
[{"$f":"+'Cover Page'!$B$29","v":"Annual Performance Report 2020"},null,null,null,{"$f":"+'Cover Page'!$B$33","v":"Javelin Park Energy Recovery Facility "}]
[]
["Summary of Plant Improvements"]
[]
["Summary of any efficiency improvements that have been completed within the year."]
[]
[]
[]
[]
[]
[]
[]
[]
[]
[]
["Summary of any permit improvement conditions that have been completed within the year and the resulting environmental benefits."]
["Completed:\n\nIC 2 - PM10 and PM2.5 testing carried out to determine size distribution of particulate matter and written report provided demonstrating results\n\nIC 3 - Summary of environmental performance of the plant as installed against design parameters. Demonstrated plant has been compliant with daily average ELVs, and below IBA TOC limits. Site procedures have been developed and implemented successfully reducing environmental impacts of the plant\n\nIC 5 - Performance and optimisation of SNCR system and combustion settings to minimise NOx emissions within ELVs. Plant has performed well with NOx emissions to air and complied with half hour and daily ELVs.\n\nIC 8 - Monitoring approved under PO8 carried out adn written report of impact of noise and vibration from the plant. Demonstrated plant operates within noise limits causing a minimal impact on surrounding environment."]
[]
[]
[]
[]
[]
[]
[]
[]
[]
["Summary of any changes to the plant or operating techniques which required a variation to the permit and a summary of the resulting environmental impact."]
["N/A"]
[]
[]
[]
[]
[]
[]
[]
[]
[]
["Summary of any other improvements made to the plant or planned to be made and a summary of the resulting environmental benefits."]

{"sheet":"Public Liaison","index":9,"n_rows":66,"n_cols":5,"rows_kept":66,"cut":false,"hidden":false,"merged":[[10,0,11,1],[10,2,11,9],[41,0,41,9],[12,0,13,1],[12,2,13,9],[14,0,15,1],[14,2,15,9],[16,0,17,1],[16,2,17,9],[18,0,19,1],[18,2,19,9],[20,0,21,1],[20,2,21,9],[22,0,23,1],[22,2,23,9],[24,0,25,1],[5,0,5,1],[5,2,5,9],[6,0,7,1],[6,2,7,9],[8,0,9,1],[8,2,9,9],[65,0,65,9],[55,0,56,1],[55,2,56,9],[57,0,58,1],[57,2,58,9],[59,0,60,1],[59,2,60,9],[61,0,62,1],[61,2,62,9],[63,0,64,1],[63,2,64,9],[24,2,25,9],[26,0,27,1],[26,2,27,9],[28,0,29,1],[28,2,29,9],[30,0,31,1],[30,2,31,9],[32,0,33,1],[32,2,33,9],[34,0,35,1],[34,2,35,9],[36,0,37,1],[36,2,37,9],[38,0,39,1],[38,2,39,9],[51,0,52,1],[51,2,52,9],[42,0,42,1],[42,2,42,9],[53,0,54,1],[53,2,54,9],[49,0,50,1],[49,2,50,9],[43,0,44,1],[43,2,44,9],[45,0,46,1],[45,2,46,9],[47,0,48,1],[47,2,48,9]]}
[{"$f":"+'Cover Page'!$B$29","v":"Annual Performance Report 2020"},null,null,null,{"$f":"+'Cover Page'!$B$33","v":"Javelin Park Energy Recovery Facility "}]
[]
["Details of Public & Stakeholder Liaison"]
[]
["Summary of events held during the reporting year."]
["Date",null,"Description"]
["2020-01-06",null,"Gloucestershire College Tutor Visit"]
[]
["2020-01-10",null,"Board of Directors group visit and tour"]
[]
["2020-01-14",null,"Media Day - Various Media Groups"]
[]
["2020-01-28",null,"S Moncief Artist - Running Art Workshops"]
[]
["2020-01-31",null,"Richard Graham MP - Facility tour"]
[]
["2020-02-05",null,"Biffa - Supplier group visit and tour"]
[]
["2020-02-05",null,"GCC Procurement"]
[]
["2020-02-06",null,"Community group visit and tour"]
[]
["2020-02-11",null,"Stoud Civic Society - group visit and tour"]
[]
["2020-02-19",null,"Falfield WI - group visit and tour"]
[]
["2020-02-19",null,"Stroud Youth Council - group visit and tour"]
[]
["2020-02-20",null,"Community group visit and tour"]
[]
["2020-02-25",null,"Minchinhampton Pobus Group - group visit and tour"]
[]
["2020-02-25",null,"Community group visit and tour"]
[]
["2020-02-26",null,"Stonehouse Rotary Club - group visit and tour"]
[]
["2020-02-27",null,"Droitwich U3A - group visit and tour"]
[]
["2020-03-03",null,"Clearwater Academy - School outreach"]
[]
[]
["List of events planned for next year"]
["Date",null,"Description"]
["TBC",null,"Facility Open Day x2 per year"]
[]
["TBC",null,"GCSE Physics, Chemistry and Design Technology Day Workshops"]
[]
["TBC",null,"Outreach via Zoom, Teams or virtual methods"]
[]
["TBC",null,"Industrial Art workshop"]
[]
["TBC",null,"Facility visits and tours"]
[]
["TBC",null,"Repair and Reuse workshop"]
[]
["TBC",null,"Art exhibition by photo journalist student "]
[]
["TBC",null,"Ask the Professional - Secondary School Careers Event"]
[]
["TBC",null,"CIWM (Chartered Institute of Waste Management) - Meeting, workshop and Facility tour"]
[]
["TBC",null,"CLG Community Liaison Group - meetings"]
[]
["TBC",null,"County Librarians school network meeting - Outreach"]
[]
["If you wish to be involved in the public liasion programme, please contact: info@ubbgloucestershire.co.uk"]

{"sheet":"Residue Quality ","index":10,"n_rows":36,"n_cols":6,"rows_kept":36,"cut":false,"hidden":false,"merged":[[5,0,10,6],[16,0,17,1],[16,2,17,6],[20,0,21,1],[20,2,21,6],[18,0,19,1],[18,2,19,6],[12,0,12,6],[13,0,13,1],[13,2,13,6],[14,0,15,1],[14,2,15,6],[22,0,23,1],[22,2,23,6],[31,3,31,4],[27,2,28,2],[28,3,28,4],[28,5,28,6],[27,3,27,6],[26,0,26,6],[35,0,40,6],[32,3,32,4],[34,0,34,6],[27,0,28,1],[29,0,29,1],[30,0,30,1],[31,0,31,1],[32,0,32,1],[29,3,29,4],[30,3,30,4],[29,5,29,6],[30,5,30,6],[31,5,31,6],[32,5,32,6]]}
[{"$f":"+'Cover Page'!$B$29","v":"Annual Performance Report 2020"},null,null,null,{"$f":"+'Cover Page'!$B$33","v":"Javelin Park Energy Recovery Facility "}]
[]
["Residue Quality Monitoring Requirements"]
[]
["Summary of monitoring undertaken and compliance"]
["Twice monthly IBA hazardous property testing took place following the ESA Protocol, along with monthly compliance of IBA and APCr. All samples tested were compliant with the permit conditions and didn't exceed hazardous property thresholds."]
[]
[]
[]
[]
[]
[]
["Commentary on any specific events"]
["Date & Event",null,"Description"]
[]
[]
[]
[]
[]
[]
[]
[]
[]
[]
[]
[]
["Residue Quality Monitoring Results"]
["Parameter (unit) ",null,"Limit","Normal Operation "]
[null,null,null,"Bottom ash  ",null,"APC Residues"]
["Loss on Ignition (average %)",null,"<5%",0.8]
["Total Organic Carbon (average %)",null,"<3%",0.47]
["No. of Assessments Undertaken",null,"---",24,null,12]
["No. of Hazardous Results",null,"---",24]
[]
["Comments :"]
["The values above are an average of the years results. Monitoring has been compliant with the \nESA protocol guidelines and an accredited lab has been used for analysis."]

{"sheet":"Water","index":11,"n_rows":23,"n_cols":10,"rows_kept":23,"cut":false,"hidden":false,"merged":[[5,0,6,9],[7,0,8,9],[9,0,10,9],[12,0,12,9],[13,0,13,1],[13,2,13,9],[21,0,21,9],[22,0,22,2],[22,3,22,5],[14,0,15,1],[14,2,15,9],[16,0,17,1],[16,2,17,9],[18,0,19,1],[18,2,19,9],[23,0,23,2],[23,3,23,5],[24,0,24,2],[24,3,24,5],[25,0,25,2],[25,3,25,5],[29,0,29,2],[29,3,29,5],[26,0,26,2],[26,3,26,5],[27,0,27,2],[27,3,27,5],[28,0,28,2],[28,3,28,5]]}
[{"$f":"+'Cover Page'!$B$29","v":"Annual Performance Report 2020"},null,null,null,{"$f":"+'Cover Page'!$B$33","v":"Javelin Park Energy Recovery Facility "}]
[]
["Emissions to Water"]
[]
["Summary of monitoring undertaken and compliance"]
["There are no emissions to water"]
[]
[]
[]
[]
[]
[]
["Commentary on any specific events"]
["Date & Event",null,"Description"]
[]
[]
[]
[]
[]
[]
[]
["Emissions to Water / Sewer"]
["Parameter",null,null,"Monitoring Frequency",null,null,"Limit","Target","Max.","Average"]

{"sheet":"Air (periodic)","index":12,"n_rows":39,"n_cols":13,"rows_kept":39,"cut":false,"hidden":false,"merged":[[5,12,8,15],[9,12,11,15],[8,0,8,9],[5,0,6,9],[11,0,11,1],[12,0,12,1],[11,3,11,4],[12,3,12,4],[9,0,10,1],[9,5,9,9],[9,3,10,4],[9,2,10,2],[16,0,16,1],[17,0,17,1],[18,0,18,1],[13,0,13,1],[14,0,14,1],[15,0,15,1],[39,0,40,9],[25,0,25,1],[26,0,26,1],[22,0,22,1],[23,0,23,1],[37,0,37,1],[27,0,27,1],[28,0,28,1],[29,0,29,1],[30,0,30,1],[31,0,31,1],[32,0,32,1],[37,3,37,4],[29,3,29,4],[30,3,30,4],[36,3,36,4],[38,0,38,9],[19,0,19,1],[20,0,20,1],[21,0,21,1],[34,3,34,4],[35,3,35,4],[33,0,33,1],[34,0,34,1],[35,0,35,1],[36,0,36,1],[24,0,24,1],[32,3,32,4],[13,3,13,4],[14,3,14,4],[15,3,15,4],[16,3,16,4],[17,3,17,4],[18,3,18,4],[27,3,27,4],[33,3,33,4],[19,3,19,4],[20,3,20,4],[21,3,21,4],[22,3,22,4],[23,3,23,4],[24,3,24,4],[31,3,31,4],[25,3,25,4],[26,3,26,4],[28,3,28,4]]}
[{"$f":"+'Cover Page'!$B$29","v":"Annual Performance Report 2020"},null,null,null,{"$f":"+'Cover Page'!$B$33","v":"Javelin Park Energy Recovery Facility "}]
[]
["Emissions to Air (periodically monitored)"]
[]
["Summary of monitoring undertaken, standards used and compliance",null,null,null,null,null,null,null,null,null,null,null,"Notes:"]
["Periodic monitoring was carried out by a UKAS and MCERT accredited company and MCERT qualified personnel. The monitoring took place quarterly as per the permit conditions, using british standard reference methods. All results were MCERTS accredited and below the respective ELVs.",null,null,null,null,null,null,null,null,null,null,null,"Template may require adjustment for any bespoke monitoring requirements of permit. "]
[]
[]
["Results of emissions to air that are periodically monitored"]
["Substance",null,"Ref. Period","Emission Limit Value",null,"Average",null,null,null,null,null,null,"User to add additional tables as necessary, depending on whether quarterly or bi-annual reporting is required for the compliance year"]
[null,null,null,null,null,"A1","A2","A3","A4","A5"]
["Hydrogen fluoride",null,"1 hr","2 mg/m3",null,7.4999999999999997E-2]
["Cd and Th and their compounds",null,"6-8hrs","0.05 mg/m3",null,4.8999999999999998E-4]
["Hg and its compounds",null,"6-8hrs","0.05 mg/m3",null,1.7750000000000001E-3]
["Sb, As, Pb, Cr, Co, Cu, Mn, Ni, V and their compounds",null,"6-8hrs","0.5 mg/m3",null,1.6902500000000001E-2]
["Dioxins & Furans (I-TEQ)",null,"6-8hrs","0.1 ng/m3",null,6.9125000000000002E-3]
["PCBs (WHO-TEQ Humans / Mammals)",null,"6-8hrs","None set ng/m3",null,6.2750000000000002E-4]
["PCBs (WHO-TEQ Fish)",null,"6-8hrs","None set ng/m3",null,2.8625000000000001E-5]
["PCBs (WHO-TEQ Birds)",null,"6-8hrs","None set ng/m3",null,1.4074999999999999E-3]
["Dioxins & Furans (WHO-TEQ Humans / Mammals)",null,"6-8hrs","None set ng/m3",null,6.94E-3]
["Dioxins & Furans (WHO-TEQ Fish)",null,"6-8hrs","None set ng/m3",null,7.4149999999999997E-3]
["Dioxins & Furans (WHO-TEQ Birds)",null,"6-8hrs","None set ng/m3",null,1.0592500000000001E-2]
["Anthanthrene",null,"6-8hrs","None set µg/m3",null,1.5674999999999998E-2]
["Benzo(a)anthracene",null,"6-8hrs","None set µg/m3",null,3.1749999999999999E-3]
["Benzo(a)pyrene",null,"6-8hrs","None set µg/m3",null,1.0675E-2]
["Benzo(b)fluoranthene",null,"6-8hrs","None set µg/m3",null,6.7500000000000004E-4]
["Benzo(b)naptho(2,1-d) thiophene",null,"6-8hrs","None set µg/m3",null,8.9999999999999998E-4]
["Benzo(c)phenanthrene",null,"6-8hrs","None set µg/m3",null,8.9999999999999998E-4]
["Benzo(ghi)perylene",null,"6-8hrs","None set µg/m3",null,3.1749999999999999E-3]
["Benzo(k)fluoranthene",null,"6-8hrs","None set µg/m3",null,3.1749999999999999E-3]
["Cholanthrene",null,"6-8hrs","None set µg/m3",null,3.5900000000000001E-2]
["Chrysene",null,"6-8hrs","None set µg/m3",null,3.1749999999999999E-3]
["Cyclopenta(cd)pyrene",null,"6-8hrs","None set µg/m3",null,8.9999999999999998E-4]
["Dibenzo(ai)pyrene",null,"6-8hrs","None set µg/m3",null,1.1249999999999999E-3]
["Dibenzo(ah)anthracene",null,"6-8hrs","None set µg/m3",null,1.3175000000000001E-2]
["Fluoranthene",null,"6-8hrs","None set µg/m3",null,0.02]
["Indeno(123-cd) pyrene",null,"6-8hrs","None set µg/m3",null,6.7500000000000004E-4]
["Naphthalene",null,"6-8hrs","None set µg/m3",null,0.35]
["Comments :"]

{"sheet":"Air (CEMS)","index":13,"n_rows":30,"n_cols":16,"rows_kept":30,"cut":false,"hidden":false,"merged":[[5,0,8,12],[27,0,27,12],[29,0,30,12],[13,0,14,0],[10,0,10,12],[11,0,12,0],[11,2,12,2],[11,1,12,1],[11,3,11,4],[11,5,11,6],[11,7,11,8],[11,9,11,10],[11,11,11,12]]}
[{"$f":"+'Cover Page'!$B$29","v":"Annual Performance Report 2020"},null,null,null,null,null,null,null,{"$f":"+'Cover Page'!$B$33","v":"Javelin Park Energy Recovery Facility "}]
[]
["Emissions to Air (continously monitored)"]
[null,null,null,null,null,null,null,null,null,null,null,null,null,null,null,"Notes:"]
["Summary of monitoring undertaken, standards used and compliance",null,null,null,null,null,null,null,null,null,null,null,null,null,null,"Template may require adjustment for any bespoke monitoring requirements of permit"]
["Stack gases have been monitored by MCERTS accredited CEMS equipment. The performance of CEMs for these parameters complies with the requirements of BS EN 14181, including the requirements of QAL1, QAL2 and QAL3.",null,null,null,null,null,null,null,null,null,null,null,null,null,null,"Report to 2 decimal places, i.e. xx.xx%"]
[]
[]
[]
[]
["Results of emissions to air that are continuously monitored (maximum and average values for each line)"]
["Substance","Reference Period","Emission Limit Value","A1",null,"A2",null,"A3",null,"A4",null,"A5"]
[null,null,null,"Max.","Avg.","Max.","Avg.","Max.","Avg.","Max.","Avg.","Max.","Avg."]
["Oxides of nitrogen","Daily mean","200 mg/m3 ",187,143.99]
[null,"½ hourly mean","400 mg/m3 ",304,143.66999999999999]
["Particulates","Daily mean","10 mg/m3",0.19,0.14000000000000001]
[null,"½ hourly mean","30 mg/m3 ",1,0]
["Total Organic Carbon ","Daily mean","10 mg/m3 ",1,0.71]
[null,"½ hourly mean","20 mg/m3 ",3,0.25]
["Hydrogen chloride ","Daily mean","10 mg/m3 ",9,5.64]
[null,"½ hourly mean","60 mg/m3 ",44,6.17]
["Sulphur dioxide","Daily mean","50 mg/m3 ",31,9.64]
[null,"½ hourly mean","200 mg/m3 ",124,9.75]
["Carbon monoxide ","Daily mean","50 mg/m3 ",8,0.03]
[null,"½ hourly mean *","100 mg/m3 *",322,0.08]
[]
[" Ammonia","Daily mean","No limit set",4,1.34]
["* = delete or amend as appropriate"]
["Comments :"]
["Averages are average of all months, maximum values are maximum reported value in year. "]

{"sheet":"HCl","index":14,"n_rows":79,"n_cols":17,"rows_kept":79,"cut":false,"hidden":false,"merged":[[12,16,15,18],[51,9,63,9],[66,9,78,9],[4,9,4,14],[4,1,4,3],[4,4,4,6],[48,0,51,6],[47,0,47,6],[6,9,18,9],[21,9,33,9],[36,9,48,9],[3,16,7,18],[9,16,11,18]]}
[{"$f":"+'Cover Page'!$B$29","v":"Annual Performance Report 2020"},null,null,null,{"$f":"+'Cover Page'!$B$33","v":"Javelin Park Energy Recovery Facility "}]
[]
["Monitoring of Hydrogen Chloride emissions",null,null,"Whole Installation",null,null,"See  Notes in Cell Q3",null,null,{"$f":"+A3","v":"Monitoring of Hydrogen Chloride emissions"},null,null,null,"Per Combustion Line",null,null,"Notes:"]
[null,null,null,null,null,null,null,null,null,null,null,null,null,null,null,null,"User to add logic to complete Whole installation, Table A5:G18. From the data in Per Combustion Line, Table J6:O79, subject to No. of lines installed"]
["mg/Nm3","1/2 Hourly Reference Periods",null,null,"Daily Reference Periods"]
[{"$f":"+'Cover Page'!C39","v":2020},"1/2 hourly HCl ELV","Monthly 1/2 hourly mean","Highest 1/2 hourly maximum","Daily HCl ELV","Monthly daily mean","Highest daily maximum",null,null,{"$f":"+A6","v":2020},"mg/Nm3","Monthly 1/2 hourly mean","Monthly 1/2 hourly maximum","Monthly daily mean","Monthly daily maximum"]
["Jan",60,7,44,10,6.69,8,null,null,"A1","Jan",7,44,6.69,8]
["Feb",60,7,20,10,6.92,8,null,null,null,"Feb",7,20,6.92,8]
["Mar",60,8,40,10,7.77,8,null,null,null,"Mar",8,40,7.77,8,null,"Whole Installation table A5:G18:"]
["Apr",60,6,17,10,5.9,8,null,null,null,"Apr",6,17,5.9,8,null,"Mean: for 1/2 hourly and daily periods calculate mean of values across all operational combustion lines for the month"]
["May",60,5,10,10,4.92,8,null,null,null,"May",5,10,4.92,8]
["Jun",60,6,14,10,6.07,8,null,null,null,"Jun",6,14,6.07,8]
["Jul",60,6,18,10,6.46,8,null,null,null,"Jul",6,18,6.46,8,null,"Maximum: for 1/2 hourly and daily periods use the highest value across all operational combustion lines for the month"]
["Aug",60,8,18,10,8.17,9,null,null,null,"Aug",8,18,8.17,9]
["Sep",60,5,16,10,4.83,8,null,null,null,"Sep",5,16,4.83,8]
["Oct",60,5,19,10,4.6079999999999997,7,null,null,null,"Oct",5,19,4.6079999999999997,7]
["Nov",60,5,16,10,5.3849999999999998,7,null,null,null,"Nov",5,16,5.3849999999999998,7]
["Dec",60,6,24,10,6.2960000000000003,8,null,null,null,"Dec",6,24,6.2960000000000003,8]
[null,null,null,null,null,null,null,null,null,null,"Annual",{"$f":"AVERAGE(L7:L18)","v":6.166666666666667},{"$f":"MAX(M7:M18)","v":44},{"$f":"AVERAGE(N7:N18)","v":6.1682500000000005},{"$f":"MAX(O7:O18)","v":9}]
[]
[null,null,null,null,null,null,null,null,null,{"$f":"+A6","v":2020},"mg/Nm3","Monthly 1/2 hourly mean","Monthly 1/2 hourly maximum","Monthly daily mean","Monthly daily maximum"]
[null,null,null,null,null,null,null,null,null,"A2","Jan"]
[null,null,null,null,null,null,null,null,null,null,"Feb"]
[null,null,null,null,null,null,null,null,null,null,"Mar"]
[null,null,null,null,null,null,null,null,null,null,"Apr"]
[null,null,null,null,null,null,null,null,null,null,"May"]
[null,null,null,null,null,null,null,null,null,null,"Jun"]
[null,null,null,null,null,null,null,null,null,null,"Jul"]
[null,null,null,null,null,null,null,null,null,null,"Aug"]
[null,null,null,null,null,null,null,null,null,null,"Sep"]
[null,null,null,null,null,null,null,null,null,null,"Oct"]
[null,null,null,null,null,null,null,null,null,null,"Nov"]
[null,null,null,null,null,null,null,null,null,null,"Dec"]
[null,null,null,null,null,null,null,null,null,null,"Annual",{"$f":"AVERAGE(L22:L33)","v":{"$error":"#DIV/0!"}},{"$f":"MAX(M22:M33)","v":0},{"$f":"AVERAGE(N22:N33)","v":{"$error":"#DIV/0!"}},{"$f":"MAX(O22:O33)","v":0}]
[]
[null,null,null,null,null,null,null,null,null,{"$f":"+A6","v":2020},"mg/Nm3","Monthly 1/2 hourly mean","Monthly 1/2 hourly maximum","Monthly daily mean","Monthly daily maximum"]
[null,null,null,null,null,null,null,null,null,"A3","Jan"]
[null,null,null,null,null,null,null,null,null,null,"Feb"]
[null,null,null,null,null,null,null,null,null,null,"Mar"]
[null,null,null,null,null,null,null,null,null,null,"Apr"]
[null,null,null,null,null,null,null,null,null,null,"May"]
[null,null,null,null,null,null,null,null,null,null,"Jun"]
[null,null,null,null,null,null,null,null,null,null,"Jul"]
[null,null,null,null,null,null,null,null,null,null,"Aug"]
[null,null,null,null,null,null,null,null,null,null,"Sep"]
[null,null,null,null,null,null,null,null,null,null,"Oct"]
[null,null,null,null,null,null,null,null,null,null,"Nov"]
["Comments :",null,null,null,null,null,null,null,null,null,"Dec"]
[null,null,null,null,null,null,null,null,null,null,"Annual",{"$f":"AVERAGE(L37:L48)","v":{"$error":"#DIV/0!"}},{"$f":"MAX(M37:M48)","v":0},{"$f":"AVERAGE(N37:N48)","v":{"$error":"#DIV/0!"}},{"$f":"MAX(O37:O48)","v":0}]
[]
[null,null,null,null,null,null,null,null,null,{"$f":"+A6","v":2020},"mg/Nm3","Monthly 1/2 hourly mean","Monthly 1/2 hourly maximum","Monthly daily mean","Monthly daily maximum"]
[null,null,null,null,null,null,null,null,null,"A4","Jan"]
[null,null,null,null,null,null,null,null,null,null,"Feb"]
[null,null,null,null,null,null,null,null,null,null,"Mar"]
[null,null,null,null,null,null,null,null,null,null,"Apr"]
[null,null,null,null,null,null,null,null,null,null,"May"]
[null,null,null,null,null,null,null,null,null,null,"Jun"]
[null,null,null,null,null,null,null,null,null,null,"Jul"]
[null,null,null,null,null,null,null,null,null,null,"Aug"]
[null,null,null,null,null,null,null,null,null,null,"Sep"]
[null,null,null,null,null,null,null,null,null,null,"Oct"]
[null,null,null,null,null,null,null,null,null,null,"Nov"]
[null,null,null,null,null,null,null,null,null,null,"Dec"]
[null,null,null,null,null,null,null,null,null,null,"Annual",{"$f":"AVERAGE(L52:L63)","v":{"$error":"#DIV/0!"}},{"$f":"MAX(M52:M63)","v":0},{"$f":"AVERAGE(N52:N63)","v":{"$error":"#DIV/0!"}},{"$f":"MAX(O52:O63)","v":0}]
[]
[null,null,null,null,null,null,null,null,null,{"$f":"+A6","v":2020},"mg/Nm3","Monthly 1/2 hourly mean","Monthly 1/2 hourly maximum","Monthly daily mean","Monthly daily maximum"]
[null,null,null,null,null,null,null,null,null,"A5","Jan"]
[null,null,null,null,null,null,null,null,null,null,"Feb"]
[null,null,null,null,null,null,null,null,null,null,"Mar"]
[null,null,null,null,null,null,null,null,null,null,"Apr"]
[null,null,null,null,null,null,null,null,null,null,"May"]
[null,null,null,null,null,null,null,null,null,null,"Jun"]
[null,null,null,null,null,null,null,null,null,null,"Jul"]
[null,null,null,null,null,null,null,null,null,null,"Aug"]
[null,null,null,null,null,null,null,null,null,null,"Sep"]
[null,null,null,null,null,null,null,null,null,null,"Oct"]
[null,null,null,null,null,null,null,null,null,null,"Nov"]
[null,null,null,null,null,null,null,null,null,null,"Dec"]
[null,null,null,null,null,null,null,null,null,null,"Annual",{"$f":"AVERAGE(L67:L78)","v":{"$error":"#DIV/0!"}},{"$f":"MAX(M67:M78)","v":0},{"$f":"AVERAGE(N67:N78)","v":{"$error":"#DIV/0!"}},{"$f":"MAX(O67:O78)","v":0}]

{"sheet":"SO2","index":15,"n_rows":79,"n_cols":17,"rows_kept":79,"cut":false,"hidden":false,"merged":[[3,16,7,18],[9,16,11,18],[12,16,15,18],[66,9,78,9],[4,1,4,3],[4,4,4,6],[4,9,4,14],[6,9,18,9],[21,9,33,9],[36,9,48,9],[47,0,47,6],[48,0,51,6],[51,9,63,9]]}
[{"$f":"+'Cover Page'!$B$29","v":"Annual Performance Report 2020"},null,null,null,{"$f":"+'Cover Page'!$B$33","v":"Javelin Park Energy Recovery Facility "}]
[]
["Monitoring of Sulphur dioxide emissions",null,null,"Whole Installation",null,null,"See  Notes in Cell Q3",null,null,{"$f":"+A3","v":"Monitoring of Sulphur dioxide emissions"},null,null,null,"Per Combustion Line",null,null,"Notes:"]
[null,null,null,null,null,null,null,null,null,null,null,null,null,null,null,null,"User to add logic to complete Whole installation, Table A5:G18. From the data in Per Combustion Line, Table J6:O79, subject to No. of lines installed"]
["mg/Nm3","1/2 Hourly Reference Periods",null,null,"Daily Reference Periods"]
[{"$f":"+'Cover Page'!C39","v":2020},"1/2 hourly SO2 ELV","Monthly 1/2 hourly mean","Highest 1/2 hourly maximum","Daily SO2 ELV","Monthly daily mean","Highest daily maximum",null,null,{"$f":"+A6","v":2020},"mg/Nm3","Monthly 1/2 hourly mean","Monthly 1/2 hourly maximum","Monthly daily mean","Monthly daily maximum"]
["Jan",200,7,98,50,9.1300000000000008,12,null,null,"A1","Jan",7,98,9.1300000000000008,12]
["Feb",200,11,47,50,10.79,18,null,null,null,"Feb",11,47,10.79,18]
["Mar",200,14,124,50,14.13,15,null,null,null,"Mar",14,124,14.13,15,null,"Whole Installation table A5:G18:"]
["Apr",200,11,41,50,11.04,14,null,null,null,"Apr",11,41,11.04,14,null,"Mean: for 1/2 hourly and daily periods calculate mean of values across all operational combustion lines for the month"]
["May",200,11,28,50,10.220000000000001,17,null,null,null,"May",11,28,10.220000000000001,17]
["Jun",200,5,45,50,5.0199999999999996,6,null,null,null,"Jun",5,45,5.0199999999999996,6]
["Jul",200,5,42,50,4.67,6,null,null,null,"Jul",5,42,4.67,6,null,"Maximum: for 1/2 hourly and daily periods use the highest value across all operational combustion lines for the month"]
["Aug",200,5,22,50,4.88,5,null,null,null,"Aug",5,22,4.88,5]
["Sep",200,5,19,50,4.54,6,null,null,null,"Sep",5,19,4.54,6]
["Oct",200,12,55,50,11.211499999999999,19,null,null,null,"Oct",12,55,11.211499999999999,19]
["Nov",200,12,59,50,12.291,18,null,null,null,"Nov",12,59,12.291,18]
["Dec",200,19,116,50,17.733600000000003,31,null,null,null,"Dec",19,116,17.733600000000003,31]
[null,null,null,null,null,null,null,null,null,null,"Annual",{"$f":"AVERAGE(L7:L18)","v":9.75},{"$f":"MAX(M7:M18)","v":124},{"$f":"AVERAGE(N7:N18)","v":9.6380083333333335},{"$f":"MAX(O7:O18)","v":31}]
[]
[null,null,null,null,null,null,null,null,null,{"$f":"+A6","v":2020},"mg/Nm3","Monthly 1/2 hourly mean","Monthly 1/2 hourly maximum","Monthly daily mean","Monthly daily maximum"]
[null,null,null,null,null,null,null,null,null,"A2","Jan"]
[null,null,null,null,null,null,null,null,null,null,"Feb"]
[null,null,null,null,null,null,null,null,null,null,"Mar"]
[null,null,null,null,null,null,null,null,null,null,"Apr"]
[null,null,null,null,null,null,null,null,null,null,"May"]
[null,null,null,null,null,null,null,null,null,null,"Jun"]
[null,null,null,null,null,null,null,null,null,null,"Jul"]
[null,null,null,null,null,null,null,null,null,null,"Aug"]
[null,null,null,null,null,null,null,null,null,null,"Sep"]
[null,null,null,null,null,null,null,null,null,null,"Oct"]
[null,null,null,null,null,null,null,null,null,null,"Nov"]
[null,null,null,null,null,null,null,null,null,null,"Dec"]
[null,null,null,null,null,null,null,null,null,null,"Annual",{"$f":"AVERAGE(L22:L33)","v":{"$error":"#DIV/0!"}},{"$f":"MAX(M22:M33)","v":0},{"$f":"AVERAGE(N22:N33)","v":{"$error":"#DIV/0!"}},{"$f":"MAX(O22:O33)","v":0}]
[]
[null,null,null,null,null,null,null,null,null,{"$f":"+A6","v":2020},"mg/Nm3","Monthly 1/2 hourly mean","Monthly 1/2 hourly maximum","Monthly daily mean","Monthly daily maximum"]
[null,null,null,null,null,null,null,null,null,"A3","Jan"]
[null,null,null,null,null,null,null,null,null,null,"Feb"]
[null,null,null,null,null,null,null,null,null,null,"Mar"]
[null,null,null,null,null,null,null,null,null,null,"Apr"]
[null,null,null,null,null,null,null,null,null,null,"May"]
[null,null,null,null,null,null,null,null,null,null,"Jun"]
[null,null,null,null,null,null,null,null,null,null,"Jul"]
[null,null,null,null,null,null,null,null,null,null,"Aug"]
[null,null,null,null,null,null,null,null,null,null,"Sep"]
[null,null,null,null,null,null,null,null,null,null,"Oct"]
[null,null,null,null,null,null,null,null,null,null,"Nov"]
["Comments :",null,null,null,null,null,null,null,null,null,"Dec"]
[null,null,null,null,null,null,null,null,null,null,"Annual",{"$f":"AVERAGE(L37:L48)","v":{"$error":"#DIV/0!"}},{"$f":"MAX(M37:M48)","v":0},{"$f":"AVERAGE(N37:N48)","v":{"$error":"#DIV/0!"}},{"$f":"MAX(O37:O48)","v":0}]
[]
[null,null,null,null,null,null,null,null,null,{"$f":"+A6","v":2020},"mg/Nm3","Monthly 1/2 hourly mean","Monthly 1/2 hourly maximum","Monthly daily mean","Monthly daily maximum"]
[null,null,null,null,null,null,null,null,null,"A4","Jan"]
[null,null,null,null,null,null,null,null,null,null,"Feb"]
[null,null,null,null,null,null,null,null,null,null,"Mar"]
[null,null,null,null,null,null,null,null,null,null,"Apr"]
[null,null,null,null,null,null,null,null,null,null,"May"]
[null,null,null,null,null,null,null,null,null,null,"Jun"]
[null,null,null,null,null,null,null,null,null,null,"Jul"]
[null,null,null,null,null,null,null,null,null,null,"Aug"]
[null,null,null,null,null,null,null,null,null,null,"Sep"]
[null,null,null,null,null,null,null,null,null,null,"Oct"]
[null,null,null,null,null,null,null,null,null,null,"Nov"]
[null,null,null,null,null,null,null,null,null,null,"Dec"]
[null,null,null,null,null,null,null,null,null,null,"Annual",{"$f":"AVERAGE(L52:L63)","v":{"$error":"#DIV/0!"}},{"$f":"MAX(M52:M63)","v":0},{"$f":"AVERAGE(N52:N63)","v":{"$error":"#DIV/0!"}},{"$f":"MAX(O52:O63)","v":0}]
[]
[null,null,null,null,null,null,null,null,null,{"$f":"+A6","v":2020},"mg/Nm3","Monthly 1/2 hourly mean","Monthly 1/2 hourly maximum","Monthly daily mean","Monthly daily maximum"]
[null,null,null,null,null,null,null,null,null,"A5","Jan"]
[null,null,null,null,null,null,null,null,null,null,"Feb"]
[null,null,null,null,null,null,null,null,null,null,"Mar"]
[null,null,null,null,null,null,null,null,null,null,"Apr"]
[null,null,null,null,null,null,null,null,null,null,"May"]
[null,null,null,null,null,null,null,null,null,null,"Jun"]
[null,null,null,null,null,null,null,null,null,null,"Jul"]
[null,null,null,null,null,null,null,null,null,null,"Aug"]
[null,null,null,null,null,null,null,null,null,null,"Sep"]
[null,null,null,null,null,null,null,null,null,null,"Oct"]
[null,null,null,null,null,null,null,null,null,null,"Nov"]
[null,null,null,null,null,null,null,null,null,null,"Dec"]
[null,null,null,null,null,null,null,null,null,null,"Annual",{"$f":"AVERAGE(L67:L78)","v":{"$error":"#DIV/0!"}},{"$f":"MAX(M67:M78)","v":0},{"$f":"AVERAGE(N67:N78)","v":{"$error":"#DIV/0!"}},{"$f":"MAX(O67:O78)","v":0}]

{"sheet":"NOx","index":16,"n_rows":79,"n_cols":17,"rows_kept":79,"cut":false,"hidden":false,"merged":[[3,16,7,18],[9,16,11,18],[12,16,15,18],[66,9,78,9],[4,1,4,3],[4,4,4,6],[4,9,4,14],[6,9,18,9],[21,9,33,9],[36,9,48,9],[47,0,47,6],[48,0,51,6],[51,9,63,9]]}
[{"$f":"+'Cover Page'!$B$29","v":"Annual Performance Report 2020"},null,null,null,{"$f":"+'Cover Page'!$B$33","v":"Javelin Park Energy Recovery Facility "}]
[]
["Monitoring of Oxides of Nitrogen emissions",null,null,"Whole Installation",null,null,"See  Notes in Cell Q3",null,null,{"$f":"+A3","v":"Monitoring of Oxides of Nitrogen emissions"},null,null,null,"Per Combustion Line",null,null,"Notes:"]
[null,null,null,null,null,null,null,null,null,null,null,null,null,null,null,null,"User to add logic to complete Whole installation, Table A5:G18. From the data in Per Combustion Line, Table J6:O79, subject to No. of lines installed"]
["mg/Nm3","1/2 Hourly Reference Periods",null,null,"Daily Reference Periods"]
[{"$f":"+'Cover Page'!C39","v":2020},"1/2 hourly NOx ELV","Monthly 1/2 hourly mean","Highest 1/2 hourly maximum","Daily NOx ELV","Monthly daily mean","Highest daily maximum",null,null,{"$f":"+A6","v":2020},"mg/Nm3","Monthly 1/2 hourly mean","Monthly 1/2 hourly maximum","Monthly daily mean","Monthly daily maximum"]
["Jan",400,154,254,200,153.81,179,null,null,"A1","Jan",154,254,153.81,179]
["Feb",400,140,304,200,140.38,157,null,null,null,"Feb",140,304,140.38,157]
["Mar",400,141,239,200,141.1,167,null,null,null,"Mar",141,239,141.1,167,null,"Whole Installation table A5:G18:"]
["Apr",400,144,286,200,144.29,169,null,null,null,"Apr",144,286,144.29,169,null,"Mean: for 1/2 hourly and daily periods calculate mean of values across all operational combustion lines for the month"]
["May",400,139,236,200,139.83000000000001,181,null,null,null,"May",139,236,139.83000000000001,181]
["Jun",400,130,305,200,127.22,143,null,null,null,"Jun",130,305,127.22,143]
["Jul",400,115,167,200,114.82,127,null,null,null,"Jul",115,167,114.82,127,null,"Maximum: for 1/2 hourly and daily periods use the highest value across all operational combustion lines for the month"]
["Aug",400,115,254,200,114.51,164,null,null,null,"Aug",115,254,114.51,164]
["Sep",400,128,267,200,125.96,173,null,null,null,"Sep",128,267,125.96,173]
["Oct",400,171,259,200,172.00399999999999,185,null,null,null,"Oct",171,259,172.00399999999999,185]
["Nov",400,169,273,200,169.12100000000001,187,null,null,null,"Nov",169,273,169.12100000000001,187]
["Dec",400,178,275,200,177.66400000000002,183,null,null,null,"Dec",178,275,177.66400000000002,183]
[null,null,null,null,null,null,null,null,null,null,"Annual",{"$f":"AVERAGE(L7:L18)","v":143.66666666666666},{"$f":"MAX(M7:M18)","v":305},{"$f":"AVERAGE(N7:N18)","v":143.39241666666666},{"$f":"MAX(O7:O18)","v":187}]
[]
[null,null,null,null,null,null,null,null,null,{"$f":"+A6","v":2020},"mg/Nm3","Monthly 1/2 hourly mean","Monthly 1/2 hourly maximum","Monthly daily mean","Monthly daily maximum"]
[null,null,null,null,null,null,null,null,null,"A2","Jan"]
[null,null,null,null,null,null,null,null,null,null,"Feb"]
[null,null,null,null,null,null,null,null,null,null,"Mar"]
[null,null,null,null,null,null,null,null,null,null,"Apr"]
[null,null,null,null,null,null,null,null,null,null,"May"]
[null,null,null,null,null,null,null,null,null,null,"Jun"]
[null,null,null,null,null,null,null,null,null,null,"Jul"]
[null,null,null,null,null,null,null,null,null,null,"Aug"]
[null,null,null,null,null,null,null,null,null,null,"Sep"]
[null,null,null,null,null,null,null,null,null,null,"Oct"]
[null,null,null,null,null,null,null,null,null,null,"Nov"]
[null,null,null,null,null,null,null,null,null,null,"Dec"]
[null,null,null,null,null,null,null,null,null,null,"Annual",{"$f":"AVERAGE(L22:L33)","v":{"$error":"#DIV/0!"}},{"$f":"MAX(M22:M33)","v":0},{"$f":"AVERAGE(N22:N33)","v":{"$error":"#DIV/0!"}},{"$f":"MAX(O22:O33)","v":0}]
[]
[null,null,null,null,null,null,null,null,null,{"$f":"+A6","v":2020},"mg/Nm3","Monthly 1/2 hourly mean","Monthly 1/2 hourly maximum","Monthly daily mean","Monthly daily maximum"]
[null,null,null,null,null,null,null,null,null,"A3","Jan"]
[null,null,null,null,null,null,null,null,null,null,"Feb"]
[null,null,null,null,null,null,null,null,null,null,"Mar"]
[null,null,null,null,null,null,null,null,null,null,"Apr"]
[null,null,null,null,null,null,null,null,null,null,"May"]
[null,null,null,null,null,null,null,null,null,null,"Jun"]
[null,null,null,null,null,null,null,null,null,null,"Jul"]
[null,null,null,null,null,null,null,null,null,null,"Aug"]
[null,null,null,null,null,null,null,null,null,null,"Sep"]
[null,null,null,null,null,null,null,null,null,null,"Oct"]
[null,null,null,null,null,null,null,null,null,null,"Nov"]
["Comments :",null,null,null,null,null,null,null,null,null,"Dec"]
[null,null,null,null,null,null,null,null,null,null,"Annual",{"$f":"AVERAGE(L37:L48)","v":{"$error":"#DIV/0!"}},{"$f":"MAX(M37:M48)","v":0},{"$f":"AVERAGE(N37:N48)","v":{"$error":"#DIV/0!"}},{"$f":"MAX(O37:O48)","v":0}]
[]
[null,null,null,null,null,null,null,null,null,{"$f":"+A6","v":2020},"mg/Nm3","Monthly 1/2 hourly mean","Monthly 1/2 hourly maximum","Monthly daily mean","Monthly daily maximum"]
[null,null,null,null,null,null,null,null,null,"A4","Jan"]
[null,null,null,null,null,null,null,null,null,null,"Feb"]
[null,null,null,null,null,null,null,null,null,null,"Mar"]
[null,null,null,null,null,null,null,null,null,null,"Apr"]
[null,null,null,null,null,null,null,null,null,null,"May"]
[null,null,null,null,null,null,null,null,null,null,"Jun"]
[null,null,null,null,null,null,null,null,null,null,"Jul"]
[null,null,null,null,null,null,null,null,null,null,"Aug"]
[null,null,null,null,null,null,null,null,null,null,"Sep"]
[null,null,null,null,null,null,null,null,null,null,"Oct"]
[null,null,null,null,null,null,null,null,null,null,"Nov"]
[null,null,null,null,null,null,null,null,null,null,"Dec"]
[null,null,null,null,null,null,null,null,null,null,"Annual",{"$f":"AVERAGE(L52:L63)","v":{"$error":"#DIV/0!"}},{"$f":"MAX(M52:M63)","v":0},{"$f":"AVERAGE(N52:N63)","v":{"$error":"#DIV/0!"}},{"$f":"MAX(O52:O63)","v":0}]
[]
[null,null,null,null,null,null,null,null,null,{"$f":"+A6","v":2020},"mg/Nm3","Monthly 1/2 hourly mean","Monthly 1/2 hourly maximum","Monthly daily mean","Monthly daily maximum"]
[null,null,null,null,null,null,null,null,null,"A5","Jan"]
[null,null,null,null,null,null,null,null,null,null,"Feb"]
[null,null,null,null,null,null,null,null,null,null,"Mar"]
[null,null,null,null,null,null,null,null,null,null,"Apr"]
[null,null,null,null,null,null,null,null,null,null,"May"]
[null,null,null,null,null,null,null,null,null,null,"Jun"]
[null,null,null,null,null,null,null,null,null,null,"Jul"]
[null,null,null,null,null,null,null,null,null,null,"Aug"]
[null,null,null,null,null,null,null,null,null,null,"Sep"]
[null,null,null,null,null,null,null,null,null,null,"Oct"]
[null,null,null,null,null,null,null,null,null,null,"Nov"]
[null,null,null,null,null,null,null,null,null,null,"Dec"]
[null,null,null,null,null,null,null,null,null,null,"Annual",{"$f":"AVERAGE(L67:L78)","v":{"$error":"#DIV/0!"}},{"$f":"MAX(M67:M78)","v":0},{"$f":"AVERAGE(N67:N78)","v":{"$error":"#DIV/0!"}},{"$f":"MAX(O67:O78)","v":0}]

{"sheet":"TOC","index":17,"n_rows":79,"n_cols":17,"rows_kept":79,"cut":false,"hidden":false,"merged":[[3,16,7,18],[9,16,11,18],[12,16,15,18],[66,9,78,9],[4,1,4,3],[4,4,4,6],[4,9,4,14],[6,9,18,9],[21,9,33,9],[36,9,48,9],[47,0,47,6],[48,0,51,6],[51,9,63,9]]}
[{"$f":"+'Cover Page'!$B$29","v":"Annual Performance Report 2020"},null,null,null,{"$f":"+'Cover Page'!$B$33","v":"Javelin Park Energy Recovery Facility "}]
[]
["Monitoring of Total organic carbon emissions",null,null,"Whole Installation",null,null,"See  Notes in Cell Q3",null,null,{"$f":"+A3","v":"Monitoring of Total organic carbon emissions"},null,null,null,"Per Combustion Line",null,null,"Notes:"]
[null,null,null,null,null,null,null,null,null,null,null,null,null,null,null,null,"User to add logic to complete Whole installation, Table A5:G18. From the data in Per Combustion Line, Table J6:O79, subject to No. of lines installed"]
["mg/Nm3","1/2 Hourly Reference Periods",null,null,"Daily Reference Periods"]
[{"$f":"+'Cover Page'!C39","v":2020},"1/2 hourly TOC ELV","Monthly 1/2 hourly mean","Highest 1/2 hourly maximum","Daily TOC ELV","Monthly daily mean","Highest daily maximum",null,null,{"$f":"+A6","v":2020},"mg/Nm3","Monthly 1/2 hourly mean","Monthly 1/2 hourly maximum","Monthly daily mean","Monthly daily maximum"]
["Jan",20,0,1,10,-0.02,0,null,null,"A1","Jan",0,1,-0.02,0]
["Feb",20,0,1,10,-0.01,0,null,null,null,"Feb",0,1,-0.01,0]
["Mar",20,0,1,10,-0.71,0,null,null,null,"Mar",0,1,-0.71,0,null,"Whole Installation table A5:G18:"]
["Apr",20,0,1,10,0.04,0,null,null,null,"Apr",0,1,0.04,0,null,"Mean: for 1/2 hourly and daily periods calculate mean of values across all operational combustion lines for the month"]
["May",20,0,0,10,-0.01,0,null,null,null,"May",0,0,-0.01,0]
["Jun",20,0,1,10,0.43,1,null,null,null,"Jun",0,1,0.43,1]
["Jul",20,1,1,10,0.6,1,null,null,null,"Jul",1,1,0.6,1,null,"Maximum: for 1/2 hourly and daily periods use the highest value across all operational combustion lines for the month"]
["Aug",20,1,3,10,0.62,1,null,null,null,"Aug",1,3,0.62,1]
["Sep",20,1,3,10,0.8,1,null,null,null,"Sep",1,3,0.8,1]
["Oct",20,0,2,10,0.438,1,null,null,null,"Oct",0,2,0.438,1]
["Nov",20,0,1,10,4.1300000000000003E-2,0,null,null,null,"Nov",0,1,4.1300000000000003E-2,0]
["Dec",20,0,2,10,-2.3999999999999998E-3,0,null,null,null,"Dec",0,2,-2.3999999999999998E-3,0]
[null,null,null,null,null,null,null,null,null,null,"Annual",{"$f":"AVERAGE(L7:L18)","v":0.25},{"$f":"MAX(M7:M18)","v":3},{"$f":"AVERAGE(N7:N18)","v":0.18474166666666667},{"$f":"MAX(O7:O18)","v":1}]
[]
[null,null,null,null,null,null,null,null,null,{"$f":"+A6","v":2020},"mg/Nm3","Monthly 1/2 hourly mean","Monthly 1/2 hourly maximum","Monthly daily mean","Monthly daily maximum"]
[null,null,null,null,null,null,null,null,null,"A2","Jan"]
[null,null,null,null,null,null,null,null,null,null,"Feb"]
[null,null,null,null,null,null,null,null,null,null,"Mar"]
[null,null,null,null,null,null,null,null,null,null,"Apr"]
[null,null,null,null,null,null,null,null,null,null,"May"]
[null,null,null,null,null,null,null,null,null,null,"Jun"]
[null,null,null,null,null,null,null,null,null,null,"Jul"]
[null,null,null,null,null,null,null,null,null,null,"Aug"]
[null,null,null,null,null,null,null,null,null,null,"Sep"]
[null,null,null,null,null,null,null,null,null,null,"Oct"]
[null,null,null,null,null,null,null,null,null,null,"Nov"]
[null,null,null,null,null,null,null,null,null,null,"Dec"]
[null,null,null,null,null,null,null,null,null,null,"Annual",{"$f":"AVERAGE(L22:L33)","v":{"$error":"#DIV/0!"}},{"$f":"MAX(M22:M33)","v":0},{"$f":"AVERAGE(N22:N33)","v":{"$error":"#DIV/0!"}},{"$f":"MAX(O22:O33)","v":0}]
[]
[null,null,null,null,null,null,null,null,null,{"$f":"+A6","v":2020},"mg/Nm3","Monthly 1/2 hourly mean","Monthly 1/2 hourly maximum","Monthly daily mean","Monthly daily maximum"]
[null,null,null,null,null,null,null,null,null,"A3","Jan"]
[null,null,null,null,null,null,null,null,null,null,"Feb"]
[null,null,null,null,null,null,null,null,null,null,"Mar"]
[null,null,null,null,null,null,null,null,null,null,"Apr"]
[null,null,null,null,null,null,null,null,null,null,"May"]
[null,null,null,null,null,null,null,null,null,null,"Jun"]
[null,null,null,null,null,null,null,null,null,null,"Jul"]
[null,null,null,null,null,null,null,null,null,null,"Aug"]
[null,null,null,null,null,null,null,null,null,null,"Sep"]
[null,null,null,null,null,null,null,null,null,null,"Oct"]
[null,null,null,null,null,null,null,null,null,null,"Nov"]
["Comments :",null,null,null,null,null,null,null,null,null,"Dec"]
[null,null,null,null,null,null,null,null,null,null,"Annual",{"$f":"AVERAGE(L37:L48)","v":{"$error":"#DIV/0!"}},{"$f":"MAX(M37:M48)","v":0},{"$f":"AVERAGE(N37:N48)","v":{"$error":"#DIV/0!"}},{"$f":"MAX(O37:O48)","v":0}]
[]
[null,null,null,null,null,null,null,null,null,{"$f":"+A6","v":2020},"mg/Nm3","Monthly 1/2 hourly mean","Monthly 1/2 hourly maximum","Monthly daily mean","Monthly daily maximum"]
[null,null,null,null,null,null,null,null,null,"A4","Jan"]
[null,null,null,null,null,null,null,null,null,null,"Feb"]
[null,null,null,null,null,null,null,null,null,null,"Mar"]
[null,null,null,null,null,null,null,null,null,null,"Apr"]
[null,null,null,null,null,null,null,null,null,null,"May"]
[null,null,null,null,null,null,null,null,null,null,"Jun"]
[null,null,null,null,null,null,null,null,null,null,"Jul"]
[null,null,null,null,null,null,null,null,null,null,"Aug"]
[null,null,null,null,null,null,null,null,null,null,"Sep"]
[null,null,null,null,null,null,null,null,null,null,"Oct"]
[null,null,null,null,null,null,null,null,null,null,"Nov"]
[null,null,null,null,null,null,null,null,null,null,"Dec"]
[null,null,null,null,null,null,null,null,null,null,"Annual",{"$f":"AVERAGE(L52:L63)","v":{"$error":"#DIV/0!"}},{"$f":"MAX(M52:M63)","v":0},{"$f":"AVERAGE(N52:N63)","v":{"$error":"#DIV/0!"}},{"$f":"MAX(O52:O63)","v":0}]
[]
[null,null,null,null,null,null,null,null,null,{"$f":"+A6","v":2020},"mg/Nm3","Monthly 1/2 hourly mean","Monthly 1/2 hourly maximum","Monthly daily mean","Monthly daily maximum"]
[null,null,null,null,null,null,null,null,null,"A5","Jan"]
[null,null,null,null,null,null,null,null,null,null,"Feb"]
[null,null,null,null,null,null,null,null,null,null,"Mar"]
[null,null,null,null,null,null,null,null,null,null,"Apr"]
[null,null,null,null,null,null,null,null,null,null,"May"]
[null,null,null,null,null,null,null,null,null,null,"Jun"]
[null,null,null,null,null,null,null,null,null,null,"Jul"]
[null,null,null,null,null,null,null,null,null,null,"Aug"]
[null,null,null,null,null,null,null,null,null,null,"Sep"]
[null,null,null,null,null,null,null,null,null,null,"Oct"]
[null,null,null,null,null,null,null,null,null,null,"Nov"]
[null,null,null,null,null,null,null,null,null,null,"Dec"]
[null,null,null,null,null,null,null,null,null,null,"Annual",{"$f":"AVERAGE(L67:L78)","v":{"$error":"#DIV/0!"}},{"$f":"MAX(M67:M78)","v":0},{"$f":"AVERAGE(N67:N78)","v":{"$error":"#DIV/0!"}},{"$f":"MAX(O67:O78)","v":0}]

{"sheet":"Particulates","index":18,"n_rows":79,"n_cols":17,"rows_kept":79,"cut":false,"hidden":false,"merged":[[3,16,7,18],[9,16,11,18],[12,16,15,18],[66,9,78,9],[4,1,4,3],[4,4,4,6],[4,9,4,14],[6,9,18,9],[21,9,33,9],[36,9,48,9],[47,0,47,6],[48,0,51,6],[51,9,63,9]]}
[{"$f":"+'Cover Page'!$B$29","v":"Annual Performance Report 2020"},null,null,null,{"$f":"+'Cover Page'!$B$33","v":"Javelin Park Energy Recovery Facility "}]
[]
["Monitoring of Particulate matter emissions",null,null,"Whole Installation",null,null,"See  Notes in Cell Q3",null,null,{"$f":"+A3","v":"Monitoring of Particulate matter emissions"},null,null,null,"Per Combustion Line",null,null,"Notes:"]
[null,null,null,null,null,null,null,null,null,null,null,null,null,null,null,null,"User to add logic to complete Whole installation, Table A5:G18. From the data in Per Combustion Line, Table J6:O79, subject to No. of lines installed"]
["mg/Nm3","1/2 Hourly Reference Periods",null,null,"Daily Reference Periods"]
[{"$f":"+'Cover Page'!C39","v":2020},"1/2 hourly PM ELV","Monthly 1/2 hourly mean","Highest 1/2 hourly maximum","Daily PM ELV","Monthly daily mean","Highest daily maximum",null,null,{"$f":"+A6","v":2020},"mg/Nm3","Monthly 1/2 hourly mean","Monthly 1/2 hourly maximum","Monthly daily mean","Monthly daily maximum"]
["Jan",30,0,1,10,0.16,0,null,null,"A1","Jan",0,1,0.16,0]
["Feb",30,0,0,10,0.15,0,null,null,null,"Feb",0,0,0.15,0]
["Mar",30,0,0,10,0.16,0,null,null,null,"Mar",0,0,0.16,0,null,"Whole Installation table A5:G18:"]
["Apr",30,0,0,10,0.15,0,null,null,null,"Apr",0,0,0.15,0,null,"Mean: for 1/2 hourly and daily periods calculate mean of values across all operational combustion lines for the month"]
["May",30,0,0,10,0.14000000000000001,0,null,null,null,"May",0,0,0.14000000000000001,0]
["Jun",30,0,0,10,0.13,0,null,null,null,"Jun",0,0,0.13,0]
["Jul",30,0,0,10,0.12,0,null,null,null,"Jul",0,0,0.12,0,null,"Maximum: for 1/2 hourly and daily periods use the highest value across all operational combustion lines for the month"]
["Aug",30,0,0,10,0.13,0,null,null,null,"Aug",0,0,0.13,0]
["Sep",30,0,0,10,0.14000000000000001,0,null,null,null,"Sep",0,0,0.14000000000000001,0]
["Oct",30,0,0,10,0.13550000000000001,0,null,null,null,"Oct",0,0,0.13550000000000001,0]
["Nov",30,0,0,10,0.126,0,null,null,null,"Nov",0,0,0.126,0]
["Dec",30,0,0,10,0.13439999999999999,0,null,null,null,"Dec",0,0,0.13439999999999999,0]
[null,null,null,null,null,null,null,null,null,null,"Annual",{"$f":"AVERAGE(L7:L18)","v":0},{"$f":"MAX(M7:M18)","v":1},{"$f":"AVERAGE(N7:N18)","v":0.13965833333333336},{"$f":"MAX(O7:O18)","v":0}]
[]
[null,null,null,null,null,null,null,null,null,{"$f":"+A6","v":2020},"mg/Nm3","Monthly 1/2 hourly mean","Monthly 1/2 hourly maximum","Monthly daily mean","Monthly daily maximum"]
[null,null,null,null,null,null,null,null,null,"A2","Jan"]
[null,null,null,null,null,null,null,null,null,null,"Feb"]
[null,null,null,null,null,null,null,null,null,null,"Mar"]
[null,null,null,null,null,null,null,null,null,null,"Apr"]
[null,null,null,null,null,null,null,null,null,null,"May"]
[null,null,null,null,null,null,null,null,null,null,"Jun"]
[null,null,null,null,null,null,null,null,null,null,"Jul"]
[null,null,null,null,null,null,null,null,null,null,"Aug"]
[null,null,null,null,null,null,null,null,null,null,"Sep"]
[null,null,null,null,null,null,null,null,null,null,"Oct"]
[null,null,null,null,null,null,null,null,null,null,"Nov"]
[null,null,null,null,null,null,null,null,null,null,"Dec"]
[null,null,null,null,null,null,null,null,null,null,"Annual",{"$f":"AVERAGE(L22:L33)","v":{"$error":"#DIV/0!"}},{"$f":"MAX(M22:M33)","v":0},{"$f":"AVERAGE(N22:N33)","v":{"$error":"#DIV/0!"}},{"$f":"MAX(O22:O33)","v":0}]
[]
[null,null,null,null,null,null,null,null,null,{"$f":"+A6","v":2020},"mg/Nm3","Monthly 1/2 hourly mean","Monthly 1/2 hourly maximum","Monthly daily mean","Monthly daily maximum"]
[null,null,null,null,null,null,null,null,null,"A3","Jan"]
[null,null,null,null,null,null,null,null,null,null,"Feb"]
[null,null,null,null,null,null,null,null,null,null,"Mar"]
[null,null,null,null,null,null,null,null,null,null,"Apr"]
[null,null,null,null,null,null,null,null,null,null,"May"]
[null,null,null,null,null,null,null,null,null,null,"Jun"]
[null,null,null,null,null,null,null,null,null,null,"Jul"]
[null,null,null,null,null,null,null,null,null,null,"Aug"]
[null,null,null,null,null,null,null,null,null,null,"Sep"]
[null,null,null,null,null,null,null,null,null,null,"Oct"]
[null,null,null,null,null,null,null,null,null,null,"Nov"]
["Comments :",null,null,null,null,null,null,null,null,null,"Dec"]
[null,null,null,null,null,null,null,null,null,null,"Annual",{"$f":"AVERAGE(L37:L48)","v":{"$error":"#DIV/0!"}},{"$f":"MAX(M37:M48)","v":0},{"$f":"AVERAGE(N37:N48)","v":{"$error":"#DIV/0!"}},{"$f":"MAX(O37:O48)","v":0}]
[]
[null,null,null,null,null,null,null,null,null,{"$f":"+A6","v":2020},"mg/Nm3","Monthly 1/2 hourly mean","Monthly 1/2 hourly maximum","Monthly daily mean","Monthly daily maximum"]
[null,null,null,null,null,null,null,null,null,"A4","Jan"]
[null,null,null,null,null,null,null,null,null,null,"Feb"]
[null,null,null,null,null,null,null,null,null,null,"Mar"]
[null,null,null,null,null,null,null,null,null,null,"Apr"]
[null,null,null,null,null,null,null,null,null,null,"May"]
[null,null,null,null,null,null,null,null,null,null,"Jun"]
[null,null,null,null,null,null,null,null,null,null,"Jul"]
[null,null,null,null,null,null,null,null,null,null,"Aug"]
[null,null,null,null,null,null,null,null,null,null,"Sep"]
[null,null,null,null,null,null,null,null,null,null,"Oct"]
[null,null,null,null,null,null,null,null,null,null,"Nov"]
[null,null,null,null,null,null,null,null,null,null,"Dec"]
[null,null,null,null,null,null,null,null,null,null,"Annual",{"$f":"AVERAGE(L52:L63)","v":{"$error":"#DIV/0!"}},{"$f":"MAX(M52:M63)","v":0},{"$f":"AVERAGE(N52:N63)","v":{"$error":"#DIV/0!"}},{"$f":"MAX(O52:O63)","v":0}]
[]
[null,null,null,null,null,null,null,null,null,{"$f":"+A6","v":2020},"mg/Nm3","Monthly 1/2 hourly mean","Monthly 1/2 hourly maximum","Monthly daily mean","Monthly daily maximum"]
[null,null,null,null,null,null,null,null,null,"A5","Jan"]
[null,null,null,null,null,null,null,null,null,null,"Feb"]
[null,null,null,null,null,null,null,null,null,null,"Mar"]
[null,null,null,null,null,null,null,null,null,null,"Apr"]
[null,null,null,null,null,null,null,null,null,null,"May"]
[null,null,null,null,null,null,null,null,null,null,"Jun"]
[null,null,null,null,null,null,null,null,null,null,"Jul"]
[null,null,null,null,null,null,null,null,null,null,"Aug"]
[null,null,null,null,null,null,null,null,null,null,"Sep"]
[null,null,null,null,null,null,null,null,null,null,"Oct"]
[null,null,null,null,null,null,null,null,null,null,"Nov"]
[null,null,null,null,null,null,null,null,null,null,"Dec"]
[null,null,null,null,null,null,null,null,null,null,"Annual",{"$f":"AVERAGE(L67:L78)","v":{"$error":"#DIV/0!"}},{"$f":"MAX(M67:M78)","v":0},{"$f":"AVERAGE(N67:N78)","v":{"$error":"#DIV/0!"}},{"$f":"MAX(O67:O78)","v":0}]

{"sheet":"CO 0.5hourly","index":19,"n_rows":79,"n_cols":17,"rows_kept":79,"cut":false,"hidden":false,"merged":[[3,16,7,18],[9,16,11,18],[12,16,15,18],[66,9,78,9],[4,1,4,3],[4,4,4,6],[4,9,4,14],[6,9,18,9],[21,9,33,9],[36,9,48,9],[47,0,47,6],[48,0,51,6],[51,9,63,9]]}
[{"$f":"+'Cover Page'!$B$29","v":"Annual Performance Report 2020"},null,null,null,{"$f":"+'Cover Page'!$B$33","v":"Javelin Park Energy Recovery Facility "}]
[]
["Monitoring of Carbon Monoxide (half hourly)",null,null,"Whole Installation",null,null,"See  Notes in Cell Q3",null,null,{"$f":"+A3","v":"Monitoring of Carbon Monoxide (half hourly)"},null,null,null,"Per Combustion Line",null,null,"Notes:"]
[null,null,null,null,null,null,null,null,null,null,null,null,null,null,null,null,"User to add logic to complete Whole installation, Table A5:G18. From the data in Per Combustion Line, Table J6:O79, subject to No. of lines installed"]
["mg/Nm3","1/2 Hourly Reference Periods",null,null,"Daily Reference Periods"]
[{"$f":"+'Cover Page'!C39","v":2020},"1/2 hourly CO ELV","Monthly 1/2 hourly mean","Highest 1/2 hourly maximum","Daily CO ELV","Monthly daily mean","Highest daily maximum",null,null,{"$f":"+A6","v":2020},"mg/Nm3","Monthly 1/2 hourly mean","Monthly 1/2 hourly maximum","Monthly daily mean","Monthly daily maximum"]
["Jan",100,0,52,50,0.13,0,null,null,"A1","Jan",0,52,0.13,0]
["Feb",{"$f":"+B7","v":100},0,4,{"$f":"+E7","v":50},0,0,null,null,null,"Feb",0,4,0,0]
["Mar",{"$f":"+B8","v":100},0,79,{"$f":"+E8","v":50},0.1,0,null,null,null,"Mar",0,79,0.1,0,null,"Whole Installation table A5:G18:"]
["Apr",100,0,94,50,0.12,1,null,null,null,"Apr",0,94,0.12,1,null,"Mean: for 1/2 hourly and daily periods calculate mean of values across all operational combustion lines for the month"]
["May",100,0,2,50,0,0,null,null,null,"May",0,2,0,0]
["Jun",100,0,83,50,0.17,0,null,null,null,"Jun",0,83,0.17,0]
["Jul",100,0,80,50,0.14000000000000001,1,null,null,null,"Jul",0,80,0.14000000000000001,1,null,"Maximum: for 1/2 hourly and daily periods use the highest value across all operational combustion lines for the month"]
["Aug",100,1,322,50,0.71,8,null,null,null,"Aug",1,322,0.71,8]
["Sep",100,0,148,50,0.27,6,null,null,null,"Sep",0,148,0.27,6]
["Oct",100,0,45,50,-0.28149999999999997,0,null,null,null,"Oct",0,45,-0.28149999999999997,0]
["Nov",100,0,18,50,-0.53700000000000003,0,null,null,null,"Nov",0,18,-0.53700000000000003,0]
["Dec",100,0,150,50,-0.46800000000000003,0,null,null,null,"Dec",0,150,-0.46800000000000003,0]
[null,null,null,null,null,null,null,null,null,null,"Annual",{"$f":"AVERAGE(L7:L18)","v":8.3333333333333329E-2},{"$f":"MAX(M7:M18)","v":322},{"$f":"AVERAGE(N7:N18)","v":2.945833333333335E-2},{"$f":"MAX(O7:O18)","v":8}]
[]
[null,null,null,null,null,null,null,null,null,{"$f":"+A6","v":2020},"mg/Nm3","Monthly 1/2 hourly mean","Monthly 1/2 hourly maximum","Monthly daily mean","Monthly daily maximum"]
[null,null,null,null,null,null,null,null,null,"A2","Jan"]
[null,null,null,null,null,null,null,null,null,null,"Feb"]
[null,null,null,null,null,null,null,null,null,null,"Mar"]
[null,null,null,null,null,null,null,null,null,null,"Apr"]
[null,null,null,null,null,null,null,null,null,null,"May"]
[null,null,null,null,null,null,null,null,null,null,"Jun"]
[null,null,null,null,null,null,null,null,null,null,"Jul"]
[null,null,null,null,null,null,null,null,null,null,"Aug"]
[null,null,null,null,null,null,null,null,null,null,"Sep"]
[null,null,null,null,null,null,null,null,null,null,"Oct"]
[null,null,null,null,null,null,null,null,null,null,"Nov"]
[null,null,null,null,null,null,null,null,null,null,"Dec"]
[null,null,null,null,null,null,null,null,null,null,"Annual",{"$f":"AVERAGE(L22:L33)","v":{"$error":"#DIV/0!"}},{"$f":"MAX(M22:M33)","v":0},{"$f":"AVERAGE(N22:N33)","v":{"$error":"#DIV/0!"}},{"$f":"MAX(O22:O33)","v":0}]
[]
[null,null,null,null,null,null,null,null,null,{"$f":"+A6","v":2020},"mg/Nm3","Monthly 1/2 hourly mean","Monthly 1/2 hourly maximum","Monthly daily mean","Monthly daily maximum"]
[null,null,null,null,null,null,null,null,null,"A3","Jan"]
[null,null,null,null,null,null,null,null,null,null,"Feb"]
[null,null,null,null,null,null,null,null,null,null,"Mar"]
[null,null,null,null,null,null,null,null,null,null,"Apr"]
[null,null,null,null,null,null,null,null,null,null,"May"]
[null,null,null,null,null,null,null,null,null,null,"Jun"]
[null,null,null,null,null,null,null,null,null,null,"Jul"]
[null,null,null,null,null,null,null,null,null,null,"Aug"]
[null,null,null,null,null,null,null,null,null,null,"Sep"]
[null,null,null,null,null,null,null,null,null,null,"Oct"]
[null,null,null,null,null,null,null,null,null,null,"Nov"]
["Comments :",null,null,null,null,null,null,null,null,null,"Dec"]
[null,null,null,null,null,null,null,null,null,null,"Annual",{"$f":"AVERAGE(L37:L48)","v":{"$error":"#DIV/0!"}},{"$f":"MAX(M37:M48)","v":0},{"$f":"AVERAGE(N37:N48)","v":{"$error":"#DIV/0!"}},{"$f":"MAX(O37:O48)","v":0}]
[]
[null,null,null,null,null,null,null,null,null,{"$f":"+A6","v":2020},"mg/Nm3","Monthly 1/2 hourly mean","Monthly 1/2 hourly maximum","Monthly daily mean","Monthly daily maximum"]
[null,null,null,null,null,null,null,null,null,"A4","Jan"]
[null,null,null,null,null,null,null,null,null,null,"Feb"]
[null,null,null,null,null,null,null,null,null,null,"Mar"]
[null,null,null,null,null,null,null,null,null,null,"Apr"]
[null,null,null,null,null,null,null,null,null,null,"May"]
[null,null,null,null,null,null,null,null,null,null,"Jun"]
[null,null,null,null,null,null,null,null,null,null,"Jul"]
[null,null,null,null,null,null,null,null,null,null,"Aug"]
[null,null,null,null,null,null,null,null,null,null,"Sep"]
[null,null,null,null,null,null,null,null,null,null,"Oct"]
[null,null,null,null,null,null,null,null,null,null,"Nov"]
[null,null,null,null,null,null,null,null,null,null,"Dec"]
[null,null,null,null,null,null,null,null,null,null,"Annual",{"$f":"AVERAGE(L52:L63)","v":{"$error":"#DIV/0!"}},{"$f":"MAX(M52:M63)","v":0},{"$f":"AVERAGE(N52:N63)","v":{"$error":"#DIV/0!"}},{"$f":"MAX(O52:O63)","v":0}]
[]
[null,null,null,null,null,null,null,null,null,{"$f":"+A6","v":2020},"mg/Nm3","Monthly 1/2 hourly mean","Monthly 1/2 hourly maximum","Monthly daily mean","Monthly daily maximum"]
[null,null,null,null,null,null,null,null,null,"A5","Jan"]
[null,null,null,null,null,null,null,null,null,null,"Feb"]
[null,null,null,null,null,null,null,null,null,null,"Mar"]
[null,null,null,null,null,null,null,null,null,null,"Apr"]
[null,null,null,null,null,null,null,null,null,null,"May"]
[null,null,null,null,null,null,null,null,null,null,"Jun"]
[null,null,null,null,null,null,null,null,null,null,"Jul"]
[null,null,null,null,null,null,null,null,null,null,"Aug"]
[null,null,null,null,null,null,null,null,null,null,"Sep"]
[null,null,null,null,null,null,null,null,null,null,"Oct"]
[null,null,null,null,null,null,null,null,null,null,"Nov"]
[null,null,null,null,null,null,null,null,null,null,"Dec"]
[null,null,null,null,null,null,null,null,null,null,"Annual",{"$f":"AVERAGE(L67:L78)","v":{"$error":"#DIV/0!"}},{"$f":"MAX(M67:M78)","v":0},{"$f":"AVERAGE(N67:N78)","v":{"$error":"#DIV/0!"}},{"$f":"MAX(O67:O78)","v":0}]

{"sheet":"NH3","index":20,"n_rows":79,"n_cols":17,"rows_kept":79,"cut":false,"hidden":false,"merged":[[3,16,7,18],[9,16,11,18],[12,16,15,18],[66,9,78,9],[4,1,4,3],[4,4,4,6],[4,9,4,14],[6,9,18,9],[21,9,33,9],[36,9,48,9],[47,0,47,6],[48,0,51,6],[51,9,63,9]]}
[{"$f":"+'Cover Page'!$B$29","v":"Annual Performance Report 2020"},null,null,null,{"$f":"+'Cover Page'!$B$33","v":"Javelin Park Energy Recovery Facility "}]
[]
["Monitoring of Ammnonia emissions ",null,null,"Whole Installation",null,null,"See  Notes in Cell Q3",null,null,{"$f":"+A3","v":"Monitoring of Ammnonia emissions "},null,null,null,"Per Combustion Line",null,null,"Notes:"]
[null,null,null,null,null,null,null,null,null,null,null,null,null,null,null,null,"User to add logic to complete Whole installation, Table A5:G18. From the data in Per Combustion Line, Table J6:O79, subject to No. of lines installed"]
["mg/Nm3","1/2 Hourly Reference Periods",null,null,"Daily Reference Periods"]
[{"$f":"+'Cover Page'!C39","v":2020},"1/2 hourly NH3 ELV","Monthly 1/2 hourly mean","Highest 1/2 hourly maximum","Daily NH3 ELV","Monthly daily mean","Highest daily maximum",null,null,{"$f":"+A6","v":2020},"mg/Nm3","Monthly 1/2 hourly mean","Monthly 1/2 hourly maximum","Monthly daily mean","Monthly daily maximum"]
["Jan",0,1,4,0,1.1100000000000001,2,null,null,"A1","Jan",1,4,1.1100000000000001,2]
["Feb",{"$f":"+B7","v":0},1,5,0,1.34,2,null,null,null,"Feb",1,5,1.34,2]
["Mar",{"$f":"+B8","v":0},1,6,0,1.34,2,null,null,null,"Mar",1,6,1.34,2,null,"Whole Installation table A5:G18:"]
["Apr",0,2,8,0,1.75,4,null,null,null,"Apr",2,8,1.75,4,null,"Mean: for 1/2 hourly and daily periods calculate mean of values across all operational combustion lines for the month"]
["May",0,2,7,0,2.2999999999999998,4,null,null,null,"May",2,7,2.2999999999999998,4]
["Jun",0,2,6,0,2.17,4,null,null,null,"Jun",2,6,2.17,4]
["Jul",0,2,4,0,1.75,3,null,null,null,"Jul",2,4,1.75,3,null,"Maximum: for 1/2 hourly and daily periods use the highest value across all operational combustion lines for the month"]
["Aug",0,1,6,0,1.41,2,null,null,null,"Aug",1,6,1.41,2]
["Sep",0,1,7,0,1.28,3,null,null,null,"Sep",1,7,1.28,3]
["Oct",0,1,6,0,0.57099999999999995,3,null,null,null,"Oct",1,6,0.57099999999999995,3]
["Nov",0,0,3,0,0.42,1,null,null,null,"Nov",0,3,0.42,1]
["Dec",0,1,3,0,0.68,1,null,null,null,"Dec",1,3,0.68,1]
[null,null,null,null,null,null,null,null,null,null,"Annual",{"$f":"AVERAGE(L7:L18)","v":1.25},{"$f":"MAX(M7:M18)","v":8},{"$f":"AVERAGE(N7:N18)","v":1.3434166666666665},{"$f":"MAX(O7:O18)","v":4}]
[]
[null,null,null,null,null,null,null,null,null,{"$f":"+A6","v":2020},"mg/Nm3","Monthly 1/2 hourly mean","Monthly 1/2 hourly maximum","Monthly daily mean","Monthly daily maximum"]
[null,null,null,null,null,null,null,null,null,"A2","Jan"]
[null,null,null,null,null,null,null,null,null,null,"Feb"]
[null,null,null,null,null,null,null,null,null,null,"Mar"]
[null,null,null,null,null,null,null,null,null,null,"Apr"]
[null,null,null,null,null,null,null,null,null,null,"May"]
[null,null,null,null,null,null,null,null,null,null,"Jun"]
[null,null,null,null,null,null,null,null,null,null,"Jul"]
[null,null,null,null,null,null,null,null,null,null,"Aug"]
[null,null,null,null,null,null,null,null,null,null,"Sep"]
[null,null,null,null,null,null,null,null,null,null,"Oct"]
[null,null,null,null,null,null,null,null,null,null,"Nov"]
[null,null,null,null,null,null,null,null,null,null,"Dec"]
[null,null,null,null,null,null,null,null,null,null,"Annual",{"$f":"AVERAGE(L22:L33)","v":{"$error":"#DIV/0!"}},{"$f":"MAX(M22:M33)","v":0},{"$f":"AVERAGE(N22:N33)","v":{"$error":"#DIV/0!"}},{"$f":"MAX(O22:O33)","v":0}]
[]
[null,null,null,null,null,null,null,null,null,{"$f":"+A6","v":2020},"mg/Nm3","Monthly 1/2 hourly mean","Monthly 1/2 hourly maximum","Monthly daily mean","Monthly daily maximum"]
[null,null,null,null,null,null,null,null,null,"A3","Jan"]
[null,null,null,null,null,null,null,null,null,null,"Feb"]
[null,null,null,null,null,null,null,null,null,null,"Mar"]
[null,null,null,null,null,null,null,null,null,null,"Apr"]
[null,null,null,null,null,null,null,null,null,null,"May"]
[null,null,null,null,null,null,null,null,null,null,"Jun"]
[null,null,null,null,null,null,null,null,null,null,"Jul"]
[null,null,null,null,null,null,null,null,null,null,"Aug"]
[null,null,null,null,null,null,null,null,null,null,"Sep"]
[null,null,null,null,null,null,null,null,null,null,"Oct"]
[null,null,null,null,null,null,null,null,null,null,"Nov"]
["Comments :",null,null,null,null,null,null,null,null,null,"Dec"]
["An indicated ELV value of zero in the table above means that no ammonia limit is set in the permit.  ",null,null,null,null,null,null,null,null,null,"Annual",{"$f":"AVERAGE(L37:L48)","v":{"$error":"#DIV/0!"}},{"$f":"MAX(M37:M48)","v":0},{"$f":"AVERAGE(N37:N48)","v":{"$error":"#DIV/0!"}},{"$f":"MAX(O37:O48)","v":0}]
[]
[null,null,null,null,null,null,null,null,null,{"$f":"+A6","v":2020},"mg/Nm3","Monthly 1/2 hourly mean","Monthly 1/2 hourly maximum","Monthly daily mean","Monthly daily maximum"]
[null,null,null,null,null,null,null,null,null,"A4","Jan"]
[null,null,null,null,null,null,null,null,null,null,"Feb"]
[null,null,null,null,null,null,null,null,null,null,"Mar"]
[null,null,null,null,null,null,null,null,null,null,"Apr"]
[null,null,null,null,null,null,null,null,null,null,"May"]
[null,null,null,null,null,null,null,null,null,null,"Jun"]
[null,null,null,null,null,null,null,null,null,null,"Jul"]
[null,null,null,null,null,null,null,null,null,null,"Aug"]
[null,null,null,null,null,null,null,null,null,null,"Sep"]
[null,null,null,null,null,null,null,null,null,null,"Oct"]
[null,null,null,null,null,null,null,null,null,null,"Nov"]
[null,null,null,null,null,null,null,null,null,null,"Dec"]
[null,null,null,null,null,null,null,null,null,null,"Annual",{"$f":"AVERAGE(L52:L63)","v":{"$error":"#DIV/0!"}},{"$f":"MAX(M52:M63)","v":0},{"$f":"AVERAGE(N52:N63)","v":{"$error":"#DIV/0!"}},{"$f":"MAX(O52:O63)","v":0}]
[]
[null,null,null,null,null,null,null,null,null,{"$f":"+A6","v":2020},"mg/Nm3","Monthly 1/2 hourly mean","Monthly 1/2 hourly maximum","Monthly daily mean","Monthly daily maximum"]
[null,null,null,null,null,null,null,null,null,"A5","Jan"]
[null,null,null,null,null,null,null,null,null,null,"Feb"]
[null,null,null,null,null,null,null,null,null,null,"Mar"]
[null,null,null,null,null,null,null,null,null,null,"Apr"]
[null,null,null,null,null,null,null,null,null,null,"May"]
[null,null,null,null,null,null,null,null,null,null,"Jun"]
[null,null,null,null,null,null,null,null,null,null,"Jul"]
[null,null,null,null,null,null,null,null,null,null,"Aug"]
[null,null,null,null,null,null,null,null,null,null,"Sep"]
[null,null,null,null,null,null,null,null,null,null,"Oct"]
[null,null,null,null,null,null,null,null,null,null,"Nov"]
[null,null,null,null,null,null,null,null,null,null,"Dec"]
[null,null,null,null,null,null,null,null,null,null,"Annual",{"$f":"AVERAGE(L67:L78)","v":{"$error":"#DIV/0!"}},{"$f":"MAX(M67:M78)","v":0},{"$f":"AVERAGE(N67:N78)","v":{"$error":"#DIV/0!"}},{"$f":"MAX(O67:O78)","v":0}]